Publisher Label,Publisher URI,"Supplier","Net Amount £","Organisational Unit","Merchant Category Code","Purpose","Payment Date"
"Wolverhampton City Council","http://opendatacommunities.org/id/metropolitan-district-council/wolverhampton","Light/Mini In The Box",277.11,"Supported Accommodation Provider Payment","5399","Equipment - Health and Safety","31/03/2020"
"Wolverhampton City Council","http://opendatacommunities.org/id/metropolitan-district-council/wolverhampton","PAYPAL  SOUTHERNSAL",183.62,"MI Friendly Cities","5699","Equipment - Health and Safety","31/03/2020"
"Wolverhampton City Council","http://opendatacommunities.org/id/metropolitan-district-council/wolverhampton","GOOGLE  ADS5477893156",117.32,"Communications & Marketing - General","5968","R4317","31/03/2020"
"Wolverhampton City Council","http://opendatacommunities.org/id/metropolitan-district-council/wolverhampton","AMZNMktplace",52.98,"EIP Locality 8","5999","Grant Payments","31/03/2020"
"Wolverhampton City Council","http://opendatacommunities.org/id/metropolitan-district-council/wolverhampton","ASDA STORE",39.65,"Bradley Resource Centre","5411","Provisions (Not for resale)","31/03/2020"
"Wolverhampton City Council","http://opendatacommunities.org/id/metropolitan-district-council/wolverhampton","ACCU.CO.UK",77.2,"Technician","5072","R4007","31/03/2020"
"Wolverhampton City Council","http://opendatacommunities.org/id/metropolitan-district-council/wolverhampton","PO CRADLEY HEATH 0591",16.67,"LAC Transitions Team","6011","Client Allowances","31/03/2020"
"Wolverhampton City Council","http://opendatacommunities.org/id/metropolitan-district-council/wolverhampton","CUMMINGS BROTHERS LOCK",80,"Ground Maintenance East","7399","Grounds Maintenance - Non Contract","31/03/2020"
"Wolverhampton City Council","http://opendatacommunities.org/id/metropolitan-district-council/wolverhampton","PAYPAL  SHEDRITE",241,"Youth Offending Team","5261","Direct Work With Children","31/03/2020"
"Wolverhampton City Council","http://opendatacommunities.org/id/metropolitan-district-council/wolverhampton","WM MORRISONS STORE",4.05,"Wolverhampton Indoor and Open Market","5411","R4007","31/03/2020"
"Wolverhampton City Council","http://opendatacommunities.org/id/metropolitan-district-council/wolverhampton","HOME BARGAINS",7.9,"Wolverhampton Indoor and Open Market","5251","R4007","31/03/2020"
"Wolverhampton City Council","http://opendatacommunities.org/id/metropolitan-district-council/wolverhampton","Hotel on Booking.com",196.67,"Wolverhampton Indoor and Open Market","7011","Hospitality","31/03/2020"
"Wolverhampton City Council","http://opendatacommunities.org/id/metropolitan-district-council/wolverhampton","Amazon.co.uk VM7KG46J5",98.52,"Independant Living Services","5969","Protective Clothing","31/03/2020"
"Wolverhampton City Council","http://opendatacommunities.org/id/metropolitan-district-council/wolverhampton","Amazon.co.uk 578CI0965",117.29,"Independant Living Services","5969","Protective Clothing","31/03/2020"
"Wolverhampton City Council","http://opendatacommunities.org/id/metropolitan-district-council/wolverhampton","Amazon.co.uk 356P86EC5",18.77,"Independant Living Services","5969","Protective Clothing","31/03/2020"
"Wolverhampton City Council","http://opendatacommunities.org/id/metropolitan-district-council/wolverhampton","Amazon.co.uk DU8F89VK5",117.29,"Independant Living Services","5969","Protective Clothing","31/03/2020"
"Wolverhampton City Council","http://opendatacommunities.org/id/metropolitan-district-council/wolverhampton","Amazon.co.uk CG3HZ9CS5",117.25,"Independant Living Services","5969","Protective Clothing","31/03/2020"
"Wolverhampton City Council","http://opendatacommunities.org/id/metropolitan-district-council/wolverhampton","WWW.SOUTHWESTSUPPLIES.",170.65,"COVID 19 - Personal Protective equipment","1799","Protective Clothing","31/03/2020"
"Wolverhampton City Council","http://opendatacommunities.org/id/metropolitan-district-council/wolverhampton","AMZNMKTPLACE AMAZON.CO",77.93,"Northicote Farm","5999","Protective Clothing","31/03/2020"
"Wolverhampton City Council","http://opendatacommunities.org/id/metropolitan-district-council/wolverhampton","RED HOUSE BOARDING KEN",499.8,"Mental Health Assessment & Care Mgmt","5995","Accommodation Costs","30/03/2020"
"Wolverhampton City Council","http://opendatacommunities.org/id/metropolitan-district-council/wolverhampton","GOOGLE  ADS9680351324",500,"Communications & Marketing - General","7311","R4317","30/03/2020"
"Wolverhampton City Council","http://opendatacommunities.org/id/metropolitan-district-council/wolverhampton","AMZNMktplace",55.8,"EIP Locality 8","5999","Grant Payments","30/03/2020"
"Wolverhampton City Council","http://opendatacommunities.org/id/metropolitan-district-council/wolverhampton","BARCLAYS",200,"EIP Locality 8","6011","Grant Payments","30/03/2020"
"Wolverhampton City Council","http://opendatacommunities.org/id/metropolitan-district-council/wolverhampton","Amazon.co.uk PQ1NS0JV5",99.97,"Key to Inspiration","5969","Educ Trips, Holidays, Outings, Activity","30/03/2020"
"Wolverhampton City Council","http://opendatacommunities.org/id/metropolitan-district-council/wolverhampton","ASDA GROCERIES ONLINE",5,"Key to Inspiration","5411","Subsistence","30/03/2020"
"Wolverhampton City Council","http://opendatacommunities.org/id/metropolitan-district-council/wolverhampton","SCREWFIX DIRECT",130.78,"COVID 19 - Food Distribution Hub","5200","Equipment - Purchase","30/03/2020"
"Wolverhampton City Council","http://opendatacommunities.org/id/metropolitan-district-council/wolverhampton","SCREWFIX DIRECT",66.15,"COVID 19 - Food Distribution Hub","5200","Equipment - Purchase","30/03/2020"
"Wolverhampton City Council","http://opendatacommunities.org/id/metropolitan-district-council/wolverhampton","SCREWFIX DIRECT",283.28,"COVID 19 - Food Distribution Hub","5200","Equipment - Health and Safety","30/03/2020"
"Wolverhampton City Council","http://opendatacommunities.org/id/metropolitan-district-council/wolverhampton","SCREWFIX DIRECT",248.17,"COVID 19 - Food Distribution Hub","5200","Equipment - Purchase","30/03/2020"
"Wolverhampton City Council","http://opendatacommunities.org/id/metropolitan-district-council/wolverhampton","AMZNMktplace",481.68,"COVID 19 - Food Distribution Hub","5999","Equipment - Purchase","30/03/2020"
"Wolverhampton City Council","http://opendatacommunities.org/id/metropolitan-district-council/wolverhampton","ROYAL BK OF SCOTLAND",50,"LAC Transitions Team","6011","Client Allowances","30/03/2020"
"Wolverhampton City Council","http://opendatacommunities.org/id/metropolitan-district-council/wolverhampton","CITY OF WOLVERHAMPTON",17,"CIN/CP Social Work Unit - Area 1","9399","Section 17","30/03/2020"
"Wolverhampton City Council","http://opendatacommunities.org/id/metropolitan-district-council/wolverhampton","PAYPAL  RICHRUSS256 EB",7.45,"Bert Williams Leisure Centre","8999","-","30/03/2020"
"Wolverhampton City Council","http://opendatacommunities.org/id/metropolitan-district-council/wolverhampton","CURRYS ONLINE",432.49,"Pupil Premium","5732","Computing - Purchase of Hardware","30/03/2020"
"Wolverhampton City Council","http://opendatacommunities.org/id/metropolitan-district-council/wolverhampton","WP-CENTRAL TAXIS L",6.1,"Corporate Parenting","4121","Public Transport","30/03/2020"
"Wolverhampton City Council","http://opendatacommunities.org/id/metropolitan-district-council/wolverhampton","BARCLAYS",100,"LAC Transitions Team","6011","Provisions (Not for resale)","30/03/2020"
"Wolverhampton City Council","http://opendatacommunities.org/id/metropolitan-district-council/wolverhampton","Amazon.co.uk DW0VC2M75",7.73,"Power2 Team","5969","Books","30/03/2020"
"Wolverhampton City Council","http://opendatacommunities.org/id/metropolitan-district-council/wolverhampton","COPTHORNE HOTEL ME",128.33,"Emergency Duty Team","7011","Accommodation Costs","30/03/2020"
"Wolverhampton City Council","http://opendatacommunities.org/id/metropolitan-district-council/wolverhampton","Amazon.co.uk 4X3BB1IR5",234.37,"Independant Living Services","5969","Protective Clothing","30/03/2020"
"Wolverhampton City Council","http://opendatacommunities.org/id/metropolitan-district-council/wolverhampton","Amazon.co.uk KY8WJ14W5",234.37,"Independant Living Services","5969","Protective Clothing","30/03/2020"
"Wolverhampton City Council","http://opendatacommunities.org/id/metropolitan-district-council/wolverhampton","Amazon.co.uk BK8UA1A75",50.24,"Independant Living Services","5969","Protective Clothing","30/03/2020"
"Wolverhampton City Council","http://opendatacommunities.org/id/metropolitan-district-council/wolverhampton","AMZNMktplace",198,"Independant Living Services","5999","Protective Clothing","30/03/2020"
"Wolverhampton City Council","http://opendatacommunities.org/id/metropolitan-district-council/wolverhampton","APT ICC LTD",594.56,"Cleaning of Buildings - General","7399","-","30/03/2020"
"Wolverhampton City Council","http://opendatacommunities.org/id/metropolitan-district-council/wolverhampton","WIX.COM",38.75,"Technical Support","5968","Computing - Purchase of Software","30/03/2020"
"Wolverhampton City Council","http://opendatacommunities.org/id/metropolitan-district-council/wolverhampton","THE GEORGE HOTEL",55,"LAC Team","7011","Services - Professional Fees","30/03/2020"
"Wolverhampton City Council","http://opendatacommunities.org/id/metropolitan-district-council/wolverhampton","RICARDO-AEA LTD",1610,"Workforce Development","7392","Training Expenses","30/03/2020"
"Wolverhampton City Council","http://opendatacommunities.org/id/metropolitan-district-council/wolverhampton","AMZNMktplace",12.9,"Inclusion Support","5999","Stationery","30/03/2020"
"Wolverhampton City Council","http://opendatacommunities.org/id/metropolitan-district-council/wolverhampton","AMZNMktplace",29.99,"Inclusion Support","5999","Stationery","30/03/2020"
"Wolverhampton City Council","http://opendatacommunities.org/id/metropolitan-district-council/wolverhampton","NATIONWIDE",500,"NRPF","6011","No Recourse to Public Funds","30/03/2020"
"Wolverhampton City Council","http://opendatacommunities.org/id/metropolitan-district-council/wolverhampton","NATIONWIDE",500,"NRPF","6011","No Recourse to Public Funds","30/03/2020"
"Wolverhampton City Council","http://opendatacommunities.org/id/metropolitan-district-council/wolverhampton","Amazon.co.uk 2X0ED9YO5",73.53,"Northicote Farm","5969","Protective Clothing","30/03/2020"
"Wolverhampton City Council","http://opendatacommunities.org/id/metropolitan-district-council/wolverhampton","Amazon.co.uk 020NF4N25",73.52,"Northicote Farm","5969","Protective Clothing","30/03/2020"
"Wolverhampton City Council","http://opendatacommunities.org/id/metropolitan-district-council/wolverhampton","AMZNMktplace",121.77,"Strategic ICTS (ICT Serv Budget)","5999","Computing - Consumables","27/03/2020"
"Wolverhampton City Council","http://opendatacommunities.org/id/metropolitan-district-council/wolverhampton","NAMESCO",7.99,"Headstart Hubs","4816","R4317","27/03/2020"
"Wolverhampton City Council","http://opendatacommunities.org/id/metropolitan-district-council/wolverhampton","SCREWFIX DIRECT",66.69,"ALV - Darts & Comedy","5200","Equipment - Purchase","27/03/2020"
"Wolverhampton City Council","http://opendatacommunities.org/id/metropolitan-district-council/wolverhampton","SCREWFIX DIRECT",55.24,"COVID 19 - Food Distribution Hub","5200","Equipment - Purchase","27/03/2020"
"Wolverhampton City Council","http://opendatacommunities.org/id/metropolitan-district-council/wolverhampton","SCREWFIX DIRECT",7.49,"COVID 19 Temporary Morturary","5200","Equipment - R & M","27/03/2020"
"Wolverhampton City Council","http://opendatacommunities.org/id/metropolitan-district-council/wolverhampton","SAFETYKNIFE.NET",192,"COVID 19 - Food Distribution Hub","5199","Equipment - Purchase","27/03/2020"
"Wolverhampton City Council","http://opendatacommunities.org/id/metropolitan-district-council/wolverhampton","WWW.LYNVALE.CO.UK",679.68,"COVID 19 - Food Distribution Hub","5046","Fixtures and Fittings - Purchases","27/03/2020"
"Wolverhampton City Council","http://opendatacommunities.org/id/metropolitan-district-council/wolverhampton","TEAM-MEDIC (LONDON)",3500,"COVID 19 - Food Distribution Hub","8641","Medical Fees","27/03/2020"
"Wolverhampton City Council","http://opendatacommunities.org/id/metropolitan-district-council/wolverhampton","SHS HANDLING SOLUTIONS",3889.44,"COVID 19 - Food Distribution Hub","5072","Equipment - Purchase","27/03/2020"
"Wolverhampton City Council","http://opendatacommunities.org/id/metropolitan-district-council/wolverhampton","FARMFOODS 603",106.92,"Bradley Resource Centre","5411","Provisions (Not for resale)","27/03/2020"
"Wolverhampton City Council","http://opendatacommunities.org/id/metropolitan-district-council/wolverhampton","CardtronicsUK",20,"LAC Transitions Accommodation","6011","Accommodation Costs","27/03/2020"
"Wolverhampton City Council","http://opendatacommunities.org/id/metropolitan-district-council/wolverhampton","Amazon.co.uk WG9CL5VH5",20.61,"Power2 Team","5969","Books","27/03/2020"
"Wolverhampton City Council","http://opendatacommunities.org/id/metropolitan-district-council/wolverhampton","TERMINUS CONTRACT",2250,"Cleaning of Buildings - General","7512","-","27/03/2020"
"Wolverhampton City Council","http://opendatacommunities.org/id/metropolitan-district-council/wolverhampton","CITY OF WOLVERHAMPTON",27,"Centralised External Legal Costs","9399","Services - Fees and Charges","27/03/2020"
"Wolverhampton City Council","http://opendatacommunities.org/id/metropolitan-district-council/wolverhampton","000002200500000",50,"LAC Transitions Team","6011","Client Allowances","27/03/2020"
"Wolverhampton City Council","http://opendatacommunities.org/id/metropolitan-district-council/wolverhampton","LEEDS CITY COUNCIL INT",40,"Workforce Development","9399","Training Expenses","27/03/2020"
"Wolverhampton City Council","http://opendatacommunities.org/id/metropolitan-district-council/wolverhampton","RS SALES & DISTRIBUTIO",129.26,"COVID 19 - Personal Protective equipment","5999","Protective Clothing","27/03/2020"
"Wolverhampton City Council","http://opendatacommunities.org/id/metropolitan-district-council/wolverhampton","RS SALES & DISTRIBUTIO",416.67,"COVID 19 - Personal Protective equipment","5999","Protective Clothing","27/03/2020"
"Wolverhampton City Council","http://opendatacommunities.org/id/metropolitan-district-council/wolverhampton","RS SALES & DISTRIBUTIO",416.67,"COVID 19 - Personal Protective equipment","5999","Protective Clothing","27/03/2020"
"Wolverhampton City Council","http://opendatacommunities.org/id/metropolitan-district-council/wolverhampton","AMZNMktplace",14.64,"Northicote Farm","5999","Equipment - Purchase","27/03/2020"
"Wolverhampton City Council","http://opendatacommunities.org/id/metropolitan-district-council/wolverhampton","AMZNMktplace",100,"Northicote Farm","5999","Equipment - Purchase","27/03/2020"
"Wolverhampton City Council","http://opendatacommunities.org/id/metropolitan-district-council/wolverhampton","EBUYER (UK) LTD",589.42,"Strategic ICTS (ICT Serv Budget)","5722","Computing - Purchase of Hardware","26/03/2020"
"Wolverhampton City Council","http://opendatacommunities.org/id/metropolitan-district-council/wolverhampton","AMZNMktplace",30.44,"Strategic ICTS (ICT Serv Budget)","5999","Computing - Consumables","26/03/2020"
"Wolverhampton City Council","http://opendatacommunities.org/id/metropolitan-district-council/wolverhampton","AMZNMktplace",30.44,"Strategic ICTS (ICT Serv Budget)","5999","Computing - Consumables","26/03/2020"
"Wolverhampton City Council","http://opendatacommunities.org/id/metropolitan-district-council/wolverhampton","AMZNMktplace",121.77,"Strategic ICTS (ICT Serv Budget)","5999","Computing - Consumables","26/03/2020"
"Wolverhampton City Council","http://opendatacommunities.org/id/metropolitan-district-council/wolverhampton","ADOBE STOCK",19.99,"Communications & Marketing - General","5734","Computing - Purchase of Software","26/03/2020"
"Wolverhampton City Council","http://opendatacommunities.org/id/metropolitan-district-council/wolverhampton","AMZNMktplace",71.64,"COVID 19 - Food Distribution Hub","5999","Stationery","26/03/2020"
"Wolverhampton City Council","http://opendatacommunities.org/id/metropolitan-district-council/wolverhampton","MIDLAND BEARINGS LIMIT",5745,"COVID 19 - Food Distribution Hub","8911","Equipment - Purchase","26/03/2020"
"Wolverhampton City Council","http://opendatacommunities.org/id/metropolitan-district-council/wolverhampton","WWW.SHSHANDLINGSOLUTIO",8332.2,"COVID 19 - Food Distribution Hub","5072","Equipment - Purchase","26/03/2020"
"Wolverhampton City Council","http://opendatacommunities.org/id/metropolitan-district-council/wolverhampton","HOME BARGAINS",23.87,"Bradley Resource Centre","5251","Provisions (Not for resale)","26/03/2020"
"Wolverhampton City Council","http://opendatacommunities.org/id/metropolitan-district-council/wolverhampton","PREMIER INN",-82.08,"Research & Development","3811","Public Transport","26/03/2020"
"Wolverhampton City Council","http://opendatacommunities.org/id/metropolitan-district-council/wolverhampton","EB  OFSTED BIG CONVERS",-15,"LEP - Leadership & Management Programme","7399","Conference Expenses","26/03/2020"
"Wolverhampton City Council","http://opendatacommunities.org/id/metropolitan-district-council/wolverhampton","EB  OFSTED BIG CONVERS",-30,"LEP - Leadership & Management Programme","7399","Conference Expenses","26/03/2020"
"Wolverhampton City Council","http://opendatacommunities.org/id/metropolitan-district-council/wolverhampton","SEENIN",46.68,"Childrens with Disabilities Team","5651","Section 17","26/03/2020"
"Wolverhampton City Council","http://opendatacommunities.org/id/metropolitan-district-council/wolverhampton","AMZNMKTPLACE AMAZON.CO",22.75,"Power2 Team","5999","Equipment - Purchase","26/03/2020"
"Wolverhampton City Council","http://opendatacommunities.org/id/metropolitan-district-council/wolverhampton","APPLE.COM/BILL",9.99,"Managing Director","5735","Computing - Purchase of Software","26/03/2020"
"Wolverhampton City Council","http://opendatacommunities.org/id/metropolitan-district-council/wolverhampton","ARGOS LTD",325.95,"LAC Transitions Team","5310","Client Allowances","26/03/2020"
"Wolverhampton City Council","http://opendatacommunities.org/id/metropolitan-district-council/wolverhampton","CUMMINGS BROTHERS LOCK",14.5,"Cleaning of Buildings - General","7399","-","26/03/2020"
"Wolverhampton City Council","http://opendatacommunities.org/id/metropolitan-district-council/wolverhampton","HOME BARGAINS",7.22,"Ernest Bold Court","5251","Provisions (Not for resale)","26/03/2020"
"Wolverhampton City Council","http://opendatacommunities.org/id/metropolitan-district-council/wolverhampton","LIDL GB BILSTON",6.26,"Ernest Bold Court","5411","Provisions (Not for resale)","26/03/2020"
"Wolverhampton City Council","http://opendatacommunities.org/id/metropolitan-district-council/wolverhampton","NATIONWIDE",500,"NRPF","6011","No Recourse to Public Funds","26/03/2020"
"Wolverhampton City Council","http://opendatacommunities.org/id/metropolitan-district-council/wolverhampton","PAYPAL  S2GROUPPART EB",15.82,"Fleet Management","5533","Equipment - Purchase","26/03/2020"
"Wolverhampton City Council","http://opendatacommunities.org/id/metropolitan-district-council/wolverhampton","BARLOW MOTORS LTD",269.72,"Fleet Management","5511","Equipment - Purchase","26/03/2020"
"Wolverhampton City Council","http://opendatacommunities.org/id/metropolitan-district-council/wolverhampton","THREE (ONLINE)",69.99,"Key to Inspiration","4814","Educ Trips, Holidays, Outings, Activity","25/03/2020"
"Wolverhampton City Council","http://opendatacommunities.org/id/metropolitan-district-council/wolverhampton","SCREWFIX DIRECT",15.82,"COVID 19 - Food Distribution Hub","5200","Materials","25/03/2020"
"Wolverhampton City Council","http://opendatacommunities.org/id/metropolitan-district-council/wolverhampton","SCREWFIX DIRECT",11.58,"COVID 19 - Food Distribution Hub","5200","Equipment - Purchase","25/03/2020"
"Wolverhampton City Council","http://opendatacommunities.org/id/metropolitan-district-council/wolverhampton","THE RANGE",56.19,"Bradley Resource Centre","5311","Provisions (Not for resale)","25/03/2020"
"Wolverhampton City Council","http://opendatacommunities.org/id/metropolitan-district-council/wolverhampton","DIXONS FAMILY BUTCHERS",66,"Bradley Resource Centre","5499","Provisions (Not for resale)","25/03/2020"
"Wolverhampton City Council","http://opendatacommunities.org/id/metropolitan-district-council/wolverhampton","ASDA STORE 4753",4,"Bradley Resource Centre","5411","Provisions (Not for resale)","25/03/2020"
"Wolverhampton City Council","http://opendatacommunities.org/id/metropolitan-district-council/wolverhampton","CURRYS ONLINE",133.33,"LAC Transitions Team","5732","Client Allowances","25/03/2020"
"Wolverhampton City Council","http://opendatacommunities.org/id/metropolitan-district-council/wolverhampton","AMZNMktplace",46.75,"Key to Inspiration","5999","Equipment - Purchase","25/03/2020"
"Wolverhampton City Council","http://opendatacommunities.org/id/metropolitan-district-council/wolverhampton","NATWEST BANK",200,"NRPF","6011","No Recourse to Public Funds","25/03/2020"
"Wolverhampton City Council","http://opendatacommunities.org/id/metropolitan-district-council/wolverhampton","PREMIER INN 44536545",-114,"Regional Adoption Agency","5812","Accommodation Costs","25/03/2020"
"Wolverhampton City Council","http://opendatacommunities.org/id/metropolitan-district-council/wolverhampton","NAMESCO",7.99,"Headstart Hubs","4816","R4317","25/03/2020"
"Wolverhampton City Council","http://opendatacommunities.org/id/metropolitan-district-council/wolverhampton","ARGOS LTD",-8.32,"LAC Transitions Team","5310","Client Allowances","25/03/2020"
"Wolverhampton City Council","http://opendatacommunities.org/id/metropolitan-district-council/wolverhampton","ARGOS LTD",-41.66,"LAC Transitions Team","5310","Client Allowances","25/03/2020"
"Wolverhampton City Council","http://opendatacommunities.org/id/metropolitan-district-council/wolverhampton","ARGOS LTD",49.98,"LAC Transitions Team","5310","Client Allowances","25/03/2020"
"Wolverhampton City Council","http://opendatacommunities.org/id/metropolitan-district-council/wolverhampton","PAYPAL  EBAY EBAY EBAY",21.99,"Bert Williams Leisure Centre","5733","-","25/03/2020"
"Wolverhampton City Council","http://opendatacommunities.org/id/metropolitan-district-council/wolverhampton","PAYPAL  SIMPLYSOUND EB",39.99,"Bert Williams Leisure Centre","5732","-","25/03/2020"
"Wolverhampton City Council","http://opendatacommunities.org/id/metropolitan-district-council/wolverhampton","WICKES DUDLEY",307,"Bert Williams Leisure Centre","5200","-","25/03/2020"
"Wolverhampton City Council","http://opendatacommunities.org/id/metropolitan-district-council/wolverhampton","BARCLAYS",60,"LAC Transitions Team","6011","Provisions (Not for resale)","25/03/2020"
"Wolverhampton City Council","http://opendatacommunities.org/id/metropolitan-district-council/wolverhampton","HOTEL MERCURE",-136,"Healthy Life Expectancy","3579","Educ Trips, Holidays, Outings, Activity","25/03/2020"
"Wolverhampton City Council","http://opendatacommunities.org/id/metropolitan-district-council/wolverhampton","ARGOS LTD",252.17,"LAC Transitions Team","5310","Client Allowances","25/03/2020"
"Wolverhampton City Council","http://opendatacommunities.org/id/metropolitan-district-council/wolverhampton","THE RANGE",11.65,"LAC Transitions Accommodation","5311","Client Allowances","25/03/2020"
"Wolverhampton City Council","http://opendatacommunities.org/id/metropolitan-district-council/wolverhampton","123 REG LTD",9.99,"Technical Support","5968","Computing - Purchase of Software","25/03/2020"
"Wolverhampton City Council","http://opendatacommunities.org/id/metropolitan-district-council/wolverhampton","123 REG LTD",11.99,"Technical Support","4816","Computing - Purchase of Software","25/03/2020"
"Wolverhampton City Council","http://opendatacommunities.org/id/metropolitan-district-council/wolverhampton","ARGOS LTD",28.28,"EIP Locality 3","5310","Grant Payments","25/03/2020"
"Wolverhampton City Council","http://opendatacommunities.org/id/metropolitan-district-council/wolverhampton","ASDA GROCERIES ONLINE",5,"Ernest Bold Court","5411","Provisions (Not for resale)","25/03/2020"
"Wolverhampton City Council","http://opendatacommunities.org/id/metropolitan-district-council/wolverhampton","000002200500000",16.67,"LAC Transitions Team","6011","Client Allowances","25/03/2020"
"Wolverhampton City Council","http://opendatacommunities.org/id/metropolitan-district-council/wolverhampton","EE TOP UP VESTA",10,"School Crossing Patrol","4814","Comms - Mobile Telephones","25/03/2020"
"Wolverhampton City Council","http://opendatacommunities.org/id/metropolitan-district-council/wolverhampton","OAKLAND",735,"Destitute Plus","7011","Accommodation Costs","25/03/2020"
"Wolverhampton City Council","http://opendatacommunities.org/id/metropolitan-district-council/wolverhampton","OAKLAND",735,"Destitute Plus","7011","Accommodation Costs","25/03/2020"
"Wolverhampton City Council","http://opendatacommunities.org/id/metropolitan-district-council/wolverhampton","DIRECT SUPPLY",183.6,"COVID 19 - Personal Protective equipment","5013","Materials","25/03/2020"
"Wolverhampton City Council","http://opendatacommunities.org/id/metropolitan-district-council/wolverhampton","AMZNMktplace",5.82,"Members Expenses","5999","R4000","25/03/2020"
"Wolverhampton City Council","http://opendatacommunities.org/id/metropolitan-district-council/wolverhampton","BARCLAYS",250,"Mental Health Assessment & Care Mgmt","6011","Financial Assistance In Exceptional Circ","24/03/2020"
"Wolverhampton City Council","http://opendatacommunities.org/id/metropolitan-district-council/wolverhampton","DVSA  LEARNER",-23,"Lac Transitions","9399","Services - Supplies & Services to users","24/03/2020"
"Wolverhampton City Council","http://opendatacommunities.org/id/metropolitan-district-council/wolverhampton","EUROTOOL HIRE AND SALE",500,"Private Hire Vehicles","7394","Equipment - Health and Safety","24/03/2020"
"Wolverhampton City Council","http://opendatacommunities.org/id/metropolitan-district-council/wolverhampton","EUROTOOL HIRE AND SALE",440,"Private Hire Vehicles","7394","Equipment - Health and Safety","24/03/2020"
"Wolverhampton City Council","http://opendatacommunities.org/id/metropolitan-district-council/wolverhampton","EUROTOOL HIRE AND SALE",500,"Private Hire Vehicles","7394","Equipment - Health and Safety","24/03/2020"
"Wolverhampton City Council","http://opendatacommunities.org/id/metropolitan-district-council/wolverhampton","EB  REFUND TO BUYER",50,"Audience Development","7399","Events","24/03/2020"
"Wolverhampton City Council","http://opendatacommunities.org/id/metropolitan-district-council/wolverhampton","EB  REFUND TO BUYER",35,"Audience Development","7399","Events","24/03/2020"
"Wolverhampton City Council","http://opendatacommunities.org/id/metropolitan-district-council/wolverhampton","EB  REFUND TO BUYER",35,"Audience Development","7399","Events","24/03/2020"
"Wolverhampton City Council","http://opendatacommunities.org/id/metropolitan-district-council/wolverhampton","EB  REFUND TO BUYER",50,"Audience Development","7399","R4317","24/03/2020"
"Wolverhampton City Council","http://opendatacommunities.org/id/metropolitan-district-council/wolverhampton","EB  REFUND TO BUYER",26,"Audience Development","7399","Events","24/03/2020"
"Wolverhampton City Council","http://opendatacommunities.org/id/metropolitan-district-council/wolverhampton","EB  REFUND TO BUYER",32,"Audience Development","7399","Events","24/03/2020"
"Wolverhampton City Council","http://opendatacommunities.org/id/metropolitan-district-council/wolverhampton","EB  REFUND TO BUYER",26,"Audience Development","7399","Events","24/03/2020"
"Wolverhampton City Council","http://opendatacommunities.org/id/metropolitan-district-council/wolverhampton","EB  REFUND TO BUYER",26,"Audience Development","7399","Events","24/03/2020"
"Wolverhampton City Council","http://opendatacommunities.org/id/metropolitan-district-council/wolverhampton","EB  REFUND TO BUYER",32,"Audience Development","7399","Events","24/03/2020"
"Wolverhampton City Council","http://opendatacommunities.org/id/metropolitan-district-council/wolverhampton","EB  REFUND TO BUYER",32,"Audience Development","7399","Events","24/03/2020"
"Wolverhampton City Council","http://opendatacommunities.org/id/metropolitan-district-council/wolverhampton","EB  REFUND TO BUYER",32,"Audience Development","7399","Events","24/03/2020"
"Wolverhampton City Council","http://opendatacommunities.org/id/metropolitan-district-council/wolverhampton","EB  REFUND TO BUYER",32,"Audience Development","7399","Events","24/03/2020"
"Wolverhampton City Council","http://opendatacommunities.org/id/metropolitan-district-council/wolverhampton","EB  REFUND TO BUYER",10,"Audience Development","7399","Events","24/03/2020"
"Wolverhampton City Council","http://opendatacommunities.org/id/metropolitan-district-council/wolverhampton","EB  REFUND TO BUYER",32,"Audience Development","7399","Events","24/03/2020"
"Wolverhampton City Council","http://opendatacommunities.org/id/metropolitan-district-council/wolverhampton","EB  REFUND TO BUYER",64,"Audience Development","7399","Events","24/03/2020"
"Wolverhampton City Council","http://opendatacommunities.org/id/metropolitan-district-council/wolverhampton","EB  REFUND TO BUYER",32,"Audience Development","7399","Events","24/03/2020"
"Wolverhampton City Council","http://opendatacommunities.org/id/metropolitan-district-council/wolverhampton","EB  REFUND TO BUYER",32,"Audience Development","7399","Events","24/03/2020"
"Wolverhampton City Council","http://opendatacommunities.org/id/metropolitan-district-council/wolverhampton","EB  REFUND TO BUYER",26,"Audience Development","7399","Events","24/03/2020"
"Wolverhampton City Council","http://opendatacommunities.org/id/metropolitan-district-council/wolverhampton","EB  REFUND TO BUYER",42,"Audience Development","7399","Events","24/03/2020"
"Wolverhampton City Council","http://opendatacommunities.org/id/metropolitan-district-council/wolverhampton","EB  REFUND TO BUYER",48,"Audience Development","7399","Events","24/03/2020"
"Wolverhampton City Council","http://opendatacommunities.org/id/metropolitan-district-council/wolverhampton","CardtronicsUK",20,"LAC Transitions Team","6011","Client Allowances","24/03/2020"
"Wolverhampton City Council","http://opendatacommunities.org/id/metropolitan-district-council/wolverhampton","CURRYS ONLINE",108.33,"LAC Transitions Team","5732","Client Allowances","24/03/2020"
"Wolverhampton City Council","http://opendatacommunities.org/id/metropolitan-district-council/wolverhampton","WWW.ICELAND.CO.UK",129.66,"Key to Inspiration","5411","Subsistence","24/03/2020"
"Wolverhampton City Council","http://opendatacommunities.org/id/metropolitan-district-council/wolverhampton","TEAM-MEDIC (LONDON)",7500,"COVID 19 - Food Distribution Hub","8641","Medical Fees","24/03/2020"
"Wolverhampton City Council","http://opendatacommunities.org/id/metropolitan-district-council/wolverhampton","ASDA STORE 4753",20.67,"Bradley Resource Centre","5411","Provisions (Not for resale)","24/03/2020"
"Wolverhampton City Council","http://opendatacommunities.org/id/metropolitan-district-council/wolverhampton","CURRYS ONLINE",204.16,"Key to Inspiration","5732","Equipment - Purchase","24/03/2020"
"Wolverhampton City Council","http://opendatacommunities.org/id/metropolitan-district-council/wolverhampton","AMZNMktplace",33.29,"Key to Inspiration","5999","Cleaning Supplies and Materials","24/03/2020"
"Wolverhampton City Council","http://opendatacommunities.org/id/metropolitan-district-council/wolverhampton","ROYAL BK OF SCOTLAND",30,"LAC Transitions Team","6011","Independant Living Allowance","24/03/2020"
"Wolverhampton City Council","http://opendatacommunities.org/id/metropolitan-district-council/wolverhampton","PPOINT_ ISAUJLA LTD 17",10.24,"LAC Transitions Team","5411","Client Allowances","24/03/2020"
"Wolverhampton City Council","http://opendatacommunities.org/id/metropolitan-district-council/wolverhampton","PREMIER INN 44536545",-19,"Regional Adoption Agency","5812","Accommodation Costs","24/03/2020"
"Wolverhampton City Council","http://opendatacommunities.org/id/metropolitan-district-council/wolverhampton","ASDA SUPERSTORE",65.42,"LAC Transitions Accommodation","5411","Client Allowances","24/03/2020"
"Wolverhampton City Council","http://opendatacommunities.org/id/metropolitan-district-council/wolverhampton","LIDL GB BILSTON",5.18,"Ernest Bold Court","5411","Provisions (Not for resale)","24/03/2020"
"Wolverhampton City Council","http://opendatacommunities.org/id/metropolitan-district-council/wolverhampton","CURRYS S/S",39.99,"Inclusion Support","5732","Computing - Consumables","24/03/2020"
"Wolverhampton City Council","http://opendatacommunities.org/id/metropolitan-district-council/wolverhampton","NATWEST BANK",200,"NRPF","6011","No Recourse to Public Funds","24/03/2020"
"Wolverhampton City Council","http://opendatacommunities.org/id/metropolitan-district-council/wolverhampton","AMZNMktplace",22.93,"Community Enablement","5999","-","24/03/2020"
"Wolverhampton City Council","http://opendatacommunities.org/id/metropolitan-district-council/wolverhampton","ASDA GROCERIES ONLINE",-151.76,"Key to Inspiration","5411","-","23/03/2020"
"Wolverhampton City Council","http://opendatacommunities.org/id/metropolitan-district-council/wolverhampton","ASDA GROCERIES ONLINE",356.22,"Key to Inspiration","5411","-","23/03/2020"
"Wolverhampton City Council","http://opendatacommunities.org/id/metropolitan-district-council/wolverhampton","ONE STOP 2966",21.4,"Bradley Resource Centre","5411","Provisions (Not for resale)","23/03/2020"
"Wolverhampton City Council","http://opendatacommunities.org/id/metropolitan-district-council/wolverhampton","ASDA STORE 4753",2.85,"Bradley Resource Centre","5411","Provisions (Not for resale)","23/03/2020"
"Wolverhampton City Council","http://opendatacommunities.org/id/metropolitan-district-council/wolverhampton","ASDA STORE 4753",2.85,"Bradley Resource Centre","5411","Provisions (Not for resale)","23/03/2020"
"Wolverhampton City Council","http://opendatacommunities.org/id/metropolitan-district-council/wolverhampton","FARMFOODS 603",2.5,"Bradley Resource Centre","5411","Provisions (Not for resale)","23/03/2020"
"Wolverhampton City Council","http://opendatacommunities.org/id/metropolitan-district-council/wolverhampton","AMZNMKTPLACE AMAZON.CO",54.56,"Specialist Support Service - North","5999","Equipment - Purchase","23/03/2020"
"Wolverhampton City Council","http://opendatacommunities.org/id/metropolitan-district-council/wolverhampton","AMZNMktplace",54.56,"Specialist Support Service - North","5999","Equipment - Purchase","23/03/2020"
"Wolverhampton City Council","http://opendatacommunities.org/id/metropolitan-district-council/wolverhampton","ARGOS WOLVERHAMPTO",12.49,"LAC Transitions Team","5310","Client Allowances","23/03/2020"
"Wolverhampton City Council","http://opendatacommunities.org/id/metropolitan-district-council/wolverhampton","CardtronicsUK",9.79,"LAC Transitions Team","6011","Client Allowances","23/03/2020"
"Wolverhampton City Council","http://opendatacommunities.org/id/metropolitan-district-council/wolverhampton","NATWEST BANK",100,"NRPF","6011","No Recourse to Public Funds","23/03/2020"
"Wolverhampton City Council","http://opendatacommunities.org/id/metropolitan-district-council/wolverhampton","B&M 262 - WILLENHALL",231.99,"LAC Transitions Team","5399","Client Allowances","23/03/2020"
"Wolverhampton City Council","http://opendatacommunities.org/id/metropolitan-district-council/wolverhampton","SCREWFIX DIR. LTD",7.67,"Public Conveniences","5211","-","23/03/2020"
"Wolverhampton City Council","http://opendatacommunities.org/id/metropolitan-district-council/wolverhampton","LOYD 89 CHURCH STREET",240,"Wolverhampton Indoor and Open Market","6011","R4000","23/03/2020"
"Wolverhampton City Council","http://opendatacommunities.org/id/metropolitan-district-council/wolverhampton","123 REG LTD",107.91,"Education Data Services","5968","Computing - Purchase of Software","23/03/2020"
"Wolverhampton City Council","http://opendatacommunities.org/id/metropolitan-district-council/wolverhampton","SAINSBURYS 2040",2.45,"Ernest Bold Court","5411","Provisions (Not for resale)","23/03/2020"
"Wolverhampton City Council","http://opendatacommunities.org/id/metropolitan-district-council/wolverhampton","ASDA GROCERIES ONLINE",-4.25,"Ernest Bold Court","5411","Provisions (Not for resale)","23/03/2020"
"Wolverhampton City Council","http://opendatacommunities.org/id/metropolitan-district-council/wolverhampton","B&M 262 - WILLENHALL",19.98,"LAC Transitions Team","5399","Client Allowances","23/03/2020"
"Wolverhampton City Council","http://opendatacommunities.org/id/metropolitan-district-council/wolverhampton","CITY OF WOLVERHAMPTON",27,"Childrens with Disabilities Team","9399","Section 17","23/03/2020"
"Wolverhampton City Council","http://opendatacommunities.org/id/metropolitan-district-council/wolverhampton","POST OFFICE COUNTER",4,"Regional Adoption Agency","9402","-","23/03/2020"
"Wolverhampton City Council","http://opendatacommunities.org/id/metropolitan-district-council/wolverhampton","PREMIER INN",73.5,"Regional Adoption Agency","3811","Accommodation Costs","23/03/2020"
"Wolverhampton City Council","http://opendatacommunities.org/id/metropolitan-district-council/wolverhampton","ASDA GROCERIES ONLINE",-21.76,"Ernest Bold Court","5411","Provisions (Not for resale)","23/03/2020"
"Wolverhampton City Council","http://opendatacommunities.org/id/metropolitan-district-council/wolverhampton","ASDA GROCERIES ONLINE",55.79,"Ernest Bold Court","5411","Provisions (Not for resale)","23/03/2020"
"Wolverhampton City Council","http://opendatacommunities.org/id/metropolitan-district-council/wolverhampton","TESCO STORES 5397",2.6,"Waste Coll & Recycling Serv General","5411","Provisions (Not for resale)","23/03/2020"
"Wolverhampton City Council","http://opendatacommunities.org/id/metropolitan-district-council/wolverhampton","TESCO STORES 5397",22.24,"Waste Coll & Recycling Serv General","5411","Provisions (Not for resale)","23/03/2020"
"Wolverhampton City Council","http://opendatacommunities.org/id/metropolitan-district-council/wolverhampton","ASDA GROCERIES ONLINE",-58.55,"Duke Street Bungalows","5411","Provisions (Not for resale)","23/03/2020"
"Wolverhampton City Council","http://opendatacommunities.org/id/metropolitan-district-council/wolverhampton","ASDA GROCERIES ONLINE",249.55,"Duke Street Bungalows","5411","Provisions (Not for resale)","23/03/2020"
"Wolverhampton City Council","http://opendatacommunities.org/id/metropolitan-district-council/wolverhampton","ROOKERY Sainsburys Ba",200,"Duke Street Bungalows","6011","Provisions (Not for resale)","23/03/2020"
"Wolverhampton City Council","http://opendatacommunities.org/id/metropolitan-district-council/wolverhampton","CardtronicsUK",160,"Power2 Team","6011","Direct Work With Children","23/03/2020"
"Wolverhampton City Council","http://opendatacommunities.org/id/metropolitan-district-council/wolverhampton","AMZNMktplace",295.79,"EIP Locality 8","5999","Grant Payments","23/03/2020"
"Wolverhampton City Council","http://opendatacommunities.org/id/metropolitan-district-council/wolverhampton","B AND M RETAIL",8.33,"LAC Transitions Team","5310","Client Allowances","23/03/2020"
"Wolverhampton City Council","http://opendatacommunities.org/id/metropolitan-district-council/wolverhampton","ROYAL BK OF SCOTLAND",30,"LAC Transitions Team","6011","Accommodation Costs","23/03/2020"
"Wolverhampton City Council","http://opendatacommunities.org/id/metropolitan-district-council/wolverhampton","NETFLIX.COM",9.99,"Key to Inspiration","4899","Subscriptions","23/03/2020"
"Wolverhampton City Council","http://opendatacommunities.org/id/metropolitan-district-council/wolverhampton","J P LENNARD LTD",314.82,"Bert Williams Leisure Centre","5941","-","23/03/2020"
"Wolverhampton City Council","http://opendatacommunities.org/id/metropolitan-district-council/wolverhampton","RYMAN",97.4,"City Direct","5943","Computing - Purchase of Hardware","23/03/2020"
"Wolverhampton City Council","http://opendatacommunities.org/id/metropolitan-district-council/wolverhampton","ARGOS LTD",124.98,"Cemeteries","5310","Equipment - Purchase","23/03/2020"
"Wolverhampton City Council","http://opendatacommunities.org/id/metropolitan-district-council/wolverhampton","ROOKERY Sainsburys Ba",200,"Duke Street Bungalows","6011","Provisions (Not for resale)","23/03/2020"
"Wolverhampton City Council","http://opendatacommunities.org/id/metropolitan-district-council/wolverhampton","AMZNMktplace",1542.83,"Strategic ICTS (ICT Serv Budget)","5999","Comms - Mobile Telephones","20/03/2020"
"Wolverhampton City Council","http://opendatacommunities.org/id/metropolitan-district-council/wolverhampton","PREMIER",5.08,"Bradley Resource Centre","5499","Educ Trips, Holidays, Outings, Activity","20/03/2020"
"Wolverhampton City Council","http://opendatacommunities.org/id/metropolitan-district-council/wolverhampton","HYPERAMA CASH & CARRY",100.84,"Bradley Resource Centre","5310","Provisions (Not for resale)","20/03/2020"
"Wolverhampton City Council","http://opendatacommunities.org/id/metropolitan-district-council/wolverhampton","BARCLAYS",30,"EIP Locality 5","6011","Grant Payments","20/03/2020"
"Wolverhampton City Council","http://opendatacommunities.org/id/metropolitan-district-council/wolverhampton","ARGOS LTD",11.99,"Key to Inspiration","5310","Equipment - Health and Safety","20/03/2020"
"Wolverhampton City Council","http://opendatacommunities.org/id/metropolitan-district-council/wolverhampton","HYPERAMA CASH & CARRY",563.48,"Bradley Resource Centre","5310","Provisions (Not for resale)","20/03/2020"
"Wolverhampton City Council","http://opendatacommunities.org/id/metropolitan-district-council/wolverhampton","FARMFOODS 603",34.98,"Bradley Resource Centre","5411","Provisions (Not for resale)","20/03/2020"
"Wolverhampton City Council","http://opendatacommunities.org/id/metropolitan-district-council/wolverhampton","CAPITAL APPLIANCE CTR",124.17,"LAC Transitions Team","5722","Client Allowances","20/03/2020"
"Wolverhampton City Council","http://opendatacommunities.org/id/metropolitan-district-council/wolverhampton","WP-CENTRAL TAXIS L",166.67,"LAC Transitions Team","4121","Client Transport","20/03/2020"
"Wolverhampton City Council","http://opendatacommunities.org/id/metropolitan-district-council/wolverhampton","NATWEST BANK",250,"NRPF","6011","No Recourse to Public Funds","20/03/2020"
"Wolverhampton City Council","http://opendatacommunities.org/id/metropolitan-district-council/wolverhampton","SEENIN",58.68,"Childrens with Disabilities Team","5651","Section 17","20/03/2020"
"Wolverhampton City Council","http://opendatacommunities.org/id/metropolitan-district-council/wolverhampton","B AND M RETAIL",49.17,"LAC Transitions Team","5310","Client Allowances","20/03/2020"
"Wolverhampton City Council","http://opendatacommunities.org/id/metropolitan-district-council/wolverhampton","HYPERAMA CASH & CARRY",204.63,"Ernest Bold Court","5310","Equipment - R & M","20/03/2020"
"Wolverhampton City Council","http://opendatacommunities.org/id/metropolitan-district-council/wolverhampton","HYPERAMA CASH & CARRY",193.44,"Ernest Bold Court","5310","Equipment - R & M","20/03/2020"
"Wolverhampton City Council","http://opendatacommunities.org/id/metropolitan-district-council/wolverhampton","RYMAN",14.98,"City Direct","5943","Computing - Purchase of Hardware","20/03/2020"
"Wolverhampton City Council","http://opendatacommunities.org/id/metropolitan-district-council/wolverhampton","GEO E DAVIES",9.98,"Youth Offending Team","5251","Equipment - Purchase","20/03/2020"
"Wolverhampton City Council","http://opendatacommunities.org/id/metropolitan-district-council/wolverhampton","CURRYS ONLINE",74.96,"ICT Services","5732","Computing - Purchase of Hardware","20/03/2020"
"Wolverhampton City Council","http://opendatacommunities.org/id/metropolitan-district-council/wolverhampton","CURRYS ONLINE",74.96,"ICT Services","5732","Computing - Purchase of Hardware","20/03/2020"
"Wolverhampton City Council","http://opendatacommunities.org/id/metropolitan-district-council/wolverhampton","IZ  D & K TRADING (MID",5,"Shopmobility","5999","R4000","20/03/2020"
"Wolverhampton City Council","http://opendatacommunities.org/id/metropolitan-district-council/wolverhampton","iZ  D   K TRADING",84,"Wolverhampton Indoor and Open Market","5999","R4000","20/03/2020"
"Wolverhampton City Council","http://opendatacommunities.org/id/metropolitan-district-council/wolverhampton","AMZNMKTPLACE AMAZON.CO",24.8,"Bilston Market & Licensed Operations","5999","R4000","20/03/2020"
"Wolverhampton City Council","http://opendatacommunities.org/id/metropolitan-district-council/wolverhampton","HOME BARGAINS",2.58,"Wolverhampton Indoor and Open Market","5251","R4000","20/03/2020"
"Wolverhampton City Council","http://opendatacommunities.org/id/metropolitan-district-council/wolverhampton","LOYD 89 CHURCH STREET",220,"Wolverhampton Indoor and Open Market","6011","R4000","20/03/2020"
"Wolverhampton City Council","http://opendatacommunities.org/id/metropolitan-district-council/wolverhampton","ARGOS LTD",31.67,"EIP Locality 3","5310","Grant Payments","20/03/2020"
"Wolverhampton City Council","http://opendatacommunities.org/id/metropolitan-district-council/wolverhampton","WICKES WOLVERHAMPTON",5.9,"Learning Disabilities Management","5211","-","20/03/2020"
"Wolverhampton City Council","http://opendatacommunities.org/id/metropolitan-district-council/wolverhampton","AMZNMktplace",24.1,"Trading Standards","5999","Equipment - Purchase","20/03/2020"
"Wolverhampton City Council","http://opendatacommunities.org/id/metropolitan-district-council/wolverhampton","000002200500000",50,"LAC Transitions Team","6011","Client Allowances","20/03/2020"
"Wolverhampton City Council","http://opendatacommunities.org/id/metropolitan-district-council/wolverhampton","AMZNMktplace",7,"Ernest Bold Court","5999","R4000","20/03/2020"
"Wolverhampton City Council","http://opendatacommunities.org/id/metropolitan-district-council/wolverhampton","HYPERAMA CASH & CARRY",867.9,"Duke Street Bungalows","5310","Provisions (Not for resale)","20/03/2020"
"Wolverhampton City Council","http://opendatacommunities.org/id/metropolitan-district-council/wolverhampton","HYPERAMA CASH & CARRY",11.89,"Duke Street Bungalows","5310","Provisions (Not for resale)","20/03/2020"
"Wolverhampton City Council","http://opendatacommunities.org/id/metropolitan-district-council/wolverhampton","HMCOURTS-SERVICE.G",30,"Private Hire Drivers","9222","Professional fees","20/03/2020"
"Wolverhampton City Council","http://opendatacommunities.org/id/metropolitan-district-council/wolverhampton","ARGOS WOLVERHAMPTO",17.99,"Northicote Farm","5310","R4000","20/03/2020"
"Wolverhampton City Council","http://opendatacommunities.org/id/metropolitan-district-council/wolverhampton","AMZNMktplace",24.57,"Strategic ICTS (ICT Serv Budget)","5999","Computing - Purchase of Hardware","19/03/2020"
"Wolverhampton City Council","http://opendatacommunities.org/id/metropolitan-district-council/wolverhampton","AMZNMktplace",1667.82,"Strategic ICTS (ICT Serv Budget)","5999","Computing - Purchase of Hardware","19/03/2020"
"Wolverhampton City Council","http://opendatacommunities.org/id/metropolitan-district-council/wolverhampton","QUARK SOFTWARE, INC.",1639.2,"Strategic ICTS (ICT Serv Budget)","5045","Computing - Maint Agreements","19/03/2020"
"Wolverhampton City Council","http://opendatacommunities.org/id/metropolitan-district-council/wolverhampton","PARCELFORCE WL",32.3,"Society of Artist","4215","Comms - Postage","19/03/2020"
"Wolverhampton City Council","http://opendatacommunities.org/id/metropolitan-district-council/wolverhampton","HOME BARGAINS WOLVERHA",7.47,"LAC Transitions Team","5251","Client Allowances","19/03/2020"
"Wolverhampton City Council","http://opendatacommunities.org/id/metropolitan-district-council/wolverhampton","NATWEST BANK",250,"NRPF","6011","No Recourse to Public Funds","19/03/2020"
"Wolverhampton City Council","http://opendatacommunities.org/id/metropolitan-district-council/wolverhampton","CUMMINGS BROTHERS LOCK",5,"Adult Services - North","7399","Fixtures and Fittings - R&M","19/03/2020"
"Wolverhampton City Council","http://opendatacommunities.org/id/metropolitan-district-council/wolverhampton","Amazon.co.uk MR8FN1DT4",11.49,"Regional Adoption Agency","5969","Provisions (Not for resale)","19/03/2020"
"Wolverhampton City Council","http://opendatacommunities.org/id/metropolitan-district-council/wolverhampton","PREMIER INN",214,"Regional Adoption Agency","3811","-","19/03/2020"
"Wolverhampton City Council","http://opendatacommunities.org/id/metropolitan-district-council/wolverhampton","FAST KEY SERVICES LIMI",7.34,"Bert Williams Leisure Centre","7399","-","19/03/2020"
"Wolverhampton City Council","http://opendatacommunities.org/id/metropolitan-district-council/wolverhampton","WWW.BAX-SHOP.CO.UK",876,"Bert Williams Leisure Centre","5732","-","19/03/2020"
"Wolverhampton City Council","http://opendatacommunities.org/id/metropolitan-district-council/wolverhampton","PAYPAL  CIATRAINING",-75,"Educational Studies Delivery Area","5942","Books","19/03/2020"
"Wolverhampton City Council","http://opendatacommunities.org/id/metropolitan-district-council/wolverhampton","PAYPAL  CIATRAINING",-32.5,"Educational Studies Delivery Area","5942","Books","19/03/2020"
"Wolverhampton City Council","http://opendatacommunities.org/id/metropolitan-district-council/wolverhampton","PAYPAL  CIATRAINING",81,"Educational Studies Delivery Area","5942","Books","19/03/2020"
"Wolverhampton City Council","http://opendatacommunities.org/id/metropolitan-district-council/wolverhampton","AMZNMktplace",38.32,"Music Support Team","5999","Stationery","19/03/2020"
"Wolverhampton City Council","http://opendatacommunities.org/id/metropolitan-district-council/wolverhampton","GOOGLE  ADS9680351324",500,"Communications & Marketing - General","5968","R4317","18/03/2020"
"Wolverhampton City Council","http://opendatacommunities.org/id/metropolitan-district-council/wolverhampton","EXTENSIS",119.63,"Communications & Marketing - General","7372","Computing - Purchase of Software","18/03/2020"
"Wolverhampton City Council","http://opendatacommunities.org/id/metropolitan-district-council/wolverhampton","QUARK SOFTWARE, INC.",415,"Communications & Marketing - General","5045","Computing - Purchase of Software","18/03/2020"
"Wolverhampton City Council","http://opendatacommunities.org/id/metropolitan-district-council/wolverhampton","DIXONS FAMILY BUTCHERS",102,"Bradley Resource Centre","5499","Provisions (Not for resale)","18/03/2020"
"Wolverhampton City Council","http://opendatacommunities.org/id/metropolitan-district-council/wolverhampton","ALDI 73 772",2.36,"Street Lighting Maintenance","5411","Materials","18/03/2020"
"Wolverhampton City Council","http://opendatacommunities.org/id/metropolitan-district-council/wolverhampton","ALDI 73 772",2.36,"Street Lighting Maintenance","5411","Materials","18/03/2020"
"Wolverhampton City Council","http://opendatacommunities.org/id/metropolitan-district-council/wolverhampton","ALDI STORES LTD",0.75,"Street Lighting Maintenance","5411","Materials","18/03/2020"
"Wolverhampton City Council","http://opendatacommunities.org/id/metropolitan-district-council/wolverhampton","WM MORRISON FOOD.COM",99.07,"Discretionary Fund","5411","Materials","18/03/2020"
"Wolverhampton City Council","http://opendatacommunities.org/id/metropolitan-district-council/wolverhampton","WWW.PIZZAHUT.CO.UK",44,"Adult Services - West","5814","Catering","18/03/2020"
"Wolverhampton City Council","http://opendatacommunities.org/id/metropolitan-district-council/wolverhampton","NATWEST BANK",200,"NRPF","6011","No Recourse to Public Funds","18/03/2020"
"Wolverhampton City Council","http://opendatacommunities.org/id/metropolitan-district-council/wolverhampton","WM MORRISONS STORE",43,"Foundation Studies","5411","Equipment - Purchase","18/03/2020"
"Wolverhampton City Council","http://opendatacommunities.org/id/metropolitan-district-council/wolverhampton","TVLICENSING.CO.UK",154.5,"LAC Transitions Team","7392","Client Allowances","18/03/2020"
"Wolverhampton City Council","http://opendatacommunities.org/id/metropolitan-district-council/wolverhampton","AMZNMktplace",99.95,"Community Enablement","5999","Cleaning Supplies and Materials","18/03/2020"
"Wolverhampton City Council","http://opendatacommunities.org/id/metropolitan-district-council/wolverhampton","Trainline",-54.4,"LAC Transitions Team","4112","Public Transport","18/03/2020"
"Wolverhampton City Council","http://opendatacommunities.org/id/metropolitan-district-council/wolverhampton","CITY OF WOLVERHAMPTON",27,"CIN/CP Social Work Unit - Area 7","9399","Section 17","18/03/2020"
"Wolverhampton City Council","http://opendatacommunities.org/id/metropolitan-district-council/wolverhampton","WP-CENTRAL TAXIS L",56.4,"CIN/CP Social Work Unit - Area 7","4121","Section 17","18/03/2020"
"Wolverhampton City Council","http://opendatacommunities.org/id/metropolitan-district-council/wolverhampton","WP-CENTRAL TAXIS L",76,"CIN/CP Social Work Unit - Area 7","4121","Section 17","18/03/2020"
"Wolverhampton City Council","http://opendatacommunities.org/id/metropolitan-district-council/wolverhampton","JAMES LISTER & SONS LT",43.84,"Cleaning of Buildings - General","5085","-","18/03/2020"
"Wolverhampton City Council","http://opendatacommunities.org/id/metropolitan-district-council/wolverhampton","AMZNMktplace",83.29,"Learning Disabilities Management","5999","Equipment - Purchase","18/03/2020"
"Wolverhampton City Council","http://opendatacommunities.org/id/metropolitan-district-council/wolverhampton","AMZNMktplace",83.29,"Community Pathways","5999","Cleaning Supplies and Materials","18/03/2020"
"Wolverhampton City Council","http://opendatacommunities.org/id/metropolitan-district-council/wolverhampton","AMZNMktplace",99.95,"Community Enablement","5999","-","18/03/2020"
"Wolverhampton City Council","http://opendatacommunities.org/id/metropolitan-district-council/wolverhampton","AMZNMktplace",1.26,"Music Support Team","5999","Stationery","18/03/2020"
"Wolverhampton City Council","http://opendatacommunities.org/id/metropolitan-district-council/wolverhampton","AMZN Mktp UK 0A2I05PU5",30.82,"Music Support Team","5942","Stationery","18/03/2020"
"Wolverhampton City Council","http://opendatacommunities.org/id/metropolitan-district-council/wolverhampton","ROOKERY Sainsburys Ba",200,"Duke Street Bungalows","6011","Provisions (Not for resale)","18/03/2020"
"Wolverhampton City Council","http://opendatacommunities.org/id/metropolitan-district-council/wolverhampton","PENNFIELDS PHARMACY",50,"Duke Street Bungalows","5912","R4010","18/03/2020"
"Wolverhampton City Council","http://opendatacommunities.org/id/metropolitan-district-council/wolverhampton","AMZNMktplace",83.29,"Duke Street Bungalows","5999","R4000","18/03/2020"
"Wolverhampton City Council","http://opendatacommunities.org/id/metropolitan-district-council/wolverhampton","TEAL PATENTS LTD",-132.5,"Northicote Farm","5969","Equipment - Hire","18/03/2020"
"Wolverhampton City Council","http://opendatacommunities.org/id/metropolitan-district-council/wolverhampton","AMZNMktplace",69.98,"Strategic ICTS (ICT Serv Budget)","5999","Computing - Purchase of Hardware","18/03/2020"
"Wolverhampton City Council","http://opendatacommunities.org/id/metropolitan-district-council/wolverhampton","WWW.JA.NET",192,"Strategic ICTS (ICT Serv Budget)","8699","Computing - Purchase of Software","18/03/2020"
"Wolverhampton City Council","http://opendatacommunities.org/id/metropolitan-district-council/wolverhampton","ASDA SUPERSTORE",9.45,"Bradley Resource Centre","5411","Provisions (Not for resale)","18/03/2020"
"Wolverhampton City Council","http://opendatacommunities.org/id/metropolitan-district-council/wolverhampton","PREMIER",5.09,"Bradley Resource Centre","5499","Educ Trips, Holidays, Outings, Activity","18/03/2020"
"Wolverhampton City Council","http://opendatacommunities.org/id/metropolitan-district-council/wolverhampton","LATIFS",32.82,"Bradley Resource Centre","5310","Educ Trips, Holidays, Outings, Activity","18/03/2020"
"Wolverhampton City Council","http://opendatacommunities.org/id/metropolitan-district-council/wolverhampton","AMZNMKTPLACE AMAZON.CO",99.95,"Bradley Resource Centre","5999","R4400","18/03/2020"
"Wolverhampton City Council","http://opendatacommunities.org/id/metropolitan-district-council/wolverhampton","AMZNMktplace",99.95,"Bradley Resource Centre","5999","Cleaning Supplies and Materials","18/03/2020"
"Wolverhampton City Council","http://opendatacommunities.org/id/metropolitan-district-council/wolverhampton","AMZNMktplace",8.06,"Regional Adoption Agency","5999","Stationery","18/03/2020"
"Wolverhampton City Council","http://opendatacommunities.org/id/metropolitan-district-council/wolverhampton","WWW.PHYSICALCOMPANY.CO",246,"Aldersley Leisure Village","5941","Equipment - Purchase","18/03/2020"
"Wolverhampton City Council","http://opendatacommunities.org/id/metropolitan-district-council/wolverhampton","WWW.CORAM.ORG.UK",28.25,"Fostering Team & Allowances","8398","Publications","18/03/2020"
"Wolverhampton City Council","http://opendatacommunities.org/id/metropolitan-district-council/wolverhampton","WWW.SERVOCHEM.UK.COM",342,"Bert Williams Leisure Centre","5169","-","18/03/2020"
"Wolverhampton City Council","http://opendatacommunities.org/id/metropolitan-district-council/wolverhampton","WP-CENTRAL TAXIS L",120,"Lac Transitions","4121","Public Transport","18/03/2020"
"Wolverhampton City Council","http://opendatacommunities.org/id/metropolitan-district-council/wolverhampton","HM PASSPORT OFFICE",58.5,"LAC Team","9399","Financial Assistance In Exceptional Circ","18/03/2020"
"Wolverhampton City Council","http://opendatacommunities.org/id/metropolitan-district-council/wolverhampton","Central Taxis Limited",5.8,"Looked After Team 2","4121","Client Transport","18/03/2020"
"Wolverhampton City Council","http://opendatacommunities.org/id/metropolitan-district-council/wolverhampton","Central Taxis Limited",5.7,"Looked After Team 2","4121","Client Transport","18/03/2020"
"Wolverhampton City Council","http://opendatacommunities.org/id/metropolitan-district-council/wolverhampton","CardtronicsUK",166.67,"Emergency Duty Team","6011","Accommodation Costs","18/03/2020"
"Wolverhampton City Council","http://opendatacommunities.org/id/metropolitan-district-council/wolverhampton","Trainline",-19.7,"SEN Special Education Admin","4112","Public Transport","18/03/2020"
"Wolverhampton City Council","http://opendatacommunities.org/id/metropolitan-district-council/wolverhampton","123 REG LTD",9.99,"Technical Support","5968","Computing - Purchase of Software","18/03/2020"
"Wolverhampton City Council","http://opendatacommunities.org/id/metropolitan-district-council/wolverhampton","POST OFFICE COUNTER",7.4,"LAC Team","9402","Comms - Postage","18/03/2020"
"Wolverhampton City Council","http://opendatacommunities.org/id/metropolitan-district-council/wolverhampton","COMBINED COURT",170,"LAC Team","9222","Financial Assistance In Exceptional Circ","18/03/2020"
"Wolverhampton City Council","http://opendatacommunities.org/id/metropolitan-district-council/wolverhampton","GEN REGISTER OFFICE",45.25,"Centralised External Legal Costs","9399","Services - Fees and Charges","18/03/2020"
"Wolverhampton City Council","http://opendatacommunities.org/id/metropolitan-district-council/wolverhampton","AMZNMktplace",99.95,"Duke Street Bungalows","5999","Equipment - Purchase","18/03/2020"
"Wolverhampton City Council","http://opendatacommunities.org/id/metropolitan-district-council/wolverhampton","WWW.PAPAJOHNS.CO.UK",41.59,"Adult Services - North","5812","Conference Expenses","18/03/2020"
"Wolverhampton City Council","http://opendatacommunities.org/id/metropolitan-district-council/wolverhampton","AMZNMktplace",38.32,"Ernest Bold Court","5999","R4000","18/03/2020"
"Wolverhampton City Council","http://opendatacommunities.org/id/metropolitan-district-council/wolverhampton","AMZNMktplace",59.97,"Ernest Bold Court","5999","R4000","18/03/2020"
"Wolverhampton City Council","http://opendatacommunities.org/id/metropolitan-district-council/wolverhampton","SEVERN TRENT WATER",24.96,"NRPF","4900","No Recourse to Public Funds","18/03/2020"
"Wolverhampton City Council","http://opendatacommunities.org/id/metropolitan-district-council/wolverhampton","RED HOUSE BOARDING KEN",249.9,"Mental Health Assessment & Care Mgmt","5995","Accommodation Costs","17/03/2020"
"Wolverhampton City Council","http://opendatacommunities.org/id/metropolitan-district-council/wolverhampton","CITY OF WOLVERHAMPTON",27,"Lac Transitions","9399","Services - Supplies & Services to users","17/03/2020"
"Wolverhampton City Council","http://opendatacommunities.org/id/metropolitan-district-council/wolverhampton","NATWEST BANK",200,"Private Hire Vehicles","6011","R4403","17/03/2020"
"Wolverhampton City Council","http://opendatacommunities.org/id/metropolitan-district-council/wolverhampton","AMZNMktplace",21.65,"Communications & Marketing - General","5999","R4317","17/03/2020"
"Wolverhampton City Council","http://opendatacommunities.org/id/metropolitan-district-council/wolverhampton","THE POST OFFICE",7.4,"Contemporary Gallery","9402","Comms - Postage","17/03/2020"
"Wolverhampton City Council","http://opendatacommunities.org/id/metropolitan-district-council/wolverhampton","ARGOS LTD",135.98,"Key to Inspiration","5310","Client Allowances","17/03/2020"
"Wolverhampton City Council","http://opendatacommunities.org/id/metropolitan-district-council/wolverhampton","HYPERAMA CASH & CARRY",462.98,"Bradley Resource Centre","5310","Provisions (Not for resale)","17/03/2020"
"Wolverhampton City Council","http://opendatacommunities.org/id/metropolitan-district-council/wolverhampton","ASDA GROCERIES ONLINE",-13.56,"Bradley Resource Centre","5411","Provisions (Not for resale)","17/03/2020"
"Wolverhampton City Council","http://opendatacommunities.org/id/metropolitan-district-council/wolverhampton","ASDA GROCERIES ONLINE",148.18,"Bradley Resource Centre","5411","Provisions (Not for resale)","17/03/2020"
"Wolverhampton City Council","http://opendatacommunities.org/id/metropolitan-district-council/wolverhampton","JAMES LISTER & SONS LT",62.4,"Street Lighting Maintenance","5085","Materials","17/03/2020"
"Wolverhampton City Council","http://opendatacommunities.org/id/metropolitan-district-council/wolverhampton","NATWEST BANK",200,"NRPF","6011","No Recourse to Public Funds","17/03/2020"
"Wolverhampton City Council","http://opendatacommunities.org/id/metropolitan-district-council/wolverhampton","POST OFFICE COUNTER",327.4,"Regional Adoption Agency","9402","-","17/03/2020"
"Wolverhampton City Council","http://opendatacommunities.org/id/metropolitan-district-council/wolverhampton","Amazon.co.uk 3B2YX8OI5",19.97,"Regional Adoption Agency","5969","Stationery","17/03/2020"
"Wolverhampton City Council","http://opendatacommunities.org/id/metropolitan-district-council/wolverhampton","Amazon.co.uk WR1ZQ8OL5",15.98,"Regional Adoption Agency","5969","-","17/03/2020"
"Wolverhampton City Council","http://opendatacommunities.org/id/metropolitan-district-council/wolverhampton","Amazon.co.uk O06HE4RQ5",-1.49,"Regional Adoption Agency","5969","-","17/03/2020"
"Wolverhampton City Council","http://opendatacommunities.org/id/metropolitan-district-council/wolverhampton","Amazon.co.uk MR83718L4",27.41,"Regional Adoption Agency","5969","Stationery","17/03/2020"
"Wolverhampton City Council","http://opendatacommunities.org/id/metropolitan-district-council/wolverhampton","AMZNMktplace",7.45,"Regional Adoption Agency","5999","Stationery","17/03/2020"
"Wolverhampton City Council","http://opendatacommunities.org/id/metropolitan-district-council/wolverhampton","WWW.JUSTGLOVES.CO.UK",105.45,"Aldersley Leisure Village","5999","Equipment - Health and Safety","17/03/2020"
"Wolverhampton City Council","http://opendatacommunities.org/id/metropolitan-district-council/wolverhampton","WM MORRISONS STORE",7.6,"Corporate Parenting","5411","Direct Work With Children","17/03/2020"
"Wolverhampton City Council","http://opendatacommunities.org/id/metropolitan-district-council/wolverhampton","CARVER/WOLVERHAMPTON/L",44.97,"Cemeteries","5211","Equipment - Purchase","17/03/2020"
"Wolverhampton City Council","http://opendatacommunities.org/id/metropolitan-district-council/wolverhampton","B & Q 1243",21.52,"Public Conveniences","5200","-","17/03/2020"
"Wolverhampton City Council","http://opendatacommunities.org/id/metropolitan-district-council/wolverhampton","WILKO RETAIL LIMITED",12.5,"Art Gallery","5399","-","17/03/2020"
"Wolverhampton City Council","http://opendatacommunities.org/id/metropolitan-district-council/wolverhampton","WWW.WOLVERHAMPTON.GOV.",316.68,"LAC Transitions Team","9399","Rent","17/03/2020"
"Wolverhampton City Council","http://opendatacommunities.org/id/metropolitan-district-council/wolverhampton","IPS DURHAM CONTACT CTR",58.5,"Looked After Team 2","9399","Financial Assistance In Exceptional Circ","17/03/2020"
"Wolverhampton City Council","http://opendatacommunities.org/id/metropolitan-district-council/wolverhampton","ASDA GROCERIES ONLINE",54.3,"Ernest Bold Court","5411","Provisions (Not for resale)","17/03/2020"
"Wolverhampton City Council","http://opendatacommunities.org/id/metropolitan-district-council/wolverhampton","KCJONESCONF",125,"Inclusion Support","7922","Conference Expenses","17/03/2020"
"Wolverhampton City Council","http://opendatacommunities.org/id/metropolitan-district-council/wolverhampton","NATWEST BANK",100,"NRPF","6011","No Recourse to Public Funds","17/03/2020"
"Wolverhampton City Council","http://opendatacommunities.org/id/metropolitan-district-council/wolverhampton","NATWEST BANK",200,"NRPF","6011","No Recourse to Public Funds","17/03/2020"
"Wolverhampton City Council","http://opendatacommunities.org/id/metropolitan-district-council/wolverhampton","NATWEST BANK",200,"NRPF","6011","No Recourse to Public Funds","17/03/2020"
"Wolverhampton City Council","http://opendatacommunities.org/id/metropolitan-district-council/wolverhampton","CARVER/WOLVERHAMPTON/L",30.25,"Graffiti Removal Team","5211","Materials","17/03/2020"
"Wolverhampton City Council","http://opendatacommunities.org/id/metropolitan-district-council/wolverhampton","TFM FARM   COUNTRY",47.28,"Northicote Farm","0763","Provisions (Not for resale)","17/03/2020"
"Wolverhampton City Council","http://opendatacommunities.org/id/metropolitan-district-council/wolverhampton","OneDirect",2909.75,"Strategic ICTS (ICT Serv Budget)","4812","Computing - Consumables","16/03/2020"
"Wolverhampton City Council","http://opendatacommunities.org/id/metropolitan-district-council/wolverhampton","OneDirect",2909.75,"Strategic ICTS (ICT Serv Budget)","4812","Computing - Consumables","16/03/2020"
"Wolverhampton City Council","http://opendatacommunities.org/id/metropolitan-district-council/wolverhampton","AMZNMKTPLACE AMAZON.CO",107.97,"Document Centre - General","5999","Materials","16/03/2020"
"Wolverhampton City Council","http://opendatacommunities.org/id/metropolitan-district-council/wolverhampton","123 REG LTD",19.98,"Strategic ICTS (ICT Serv Budget)","5968","Subscriptions","16/03/2020"
"Wolverhampton City Council","http://opendatacommunities.org/id/metropolitan-district-council/wolverhampton","HIGHSTREETVOUCHERS",454.25,"IMPACT","8641","R4400","16/03/2020"
"Wolverhampton City Council","http://opendatacommunities.org/id/metropolitan-district-council/wolverhampton","NATWEST BANK",105,"NRPF","6011","No Recourse to Public Funds","16/03/2020"
"Wolverhampton City Council","http://opendatacommunities.org/id/metropolitan-district-council/wolverhampton","WWW.BRISTOWSUTOR.C",0,"Revenues","9399","VAT","16/03/2020"
"Wolverhampton City Council","http://opendatacommunities.org/id/metropolitan-district-council/wolverhampton","WWW.BRISTOWSUTOR.C",0,"Parking Enforcement","9399","VAT","16/03/2020"
"Wolverhampton City Council","http://opendatacommunities.org/id/metropolitan-district-council/wolverhampton","AMZNMKTPLACE AMAZON.CO",101.2,"Bradley Resource Centre","5999","Cleaning Supplies and Materials","16/03/2020"
"Wolverhampton City Council","http://opendatacommunities.org/id/metropolitan-district-council/wolverhampton","PREMIER INN 44536545",54.5,"Regional Adoption Agency","5812","-","16/03/2020"
"Wolverhampton City Council","http://opendatacommunities.org/id/metropolitan-district-council/wolverhampton","PREMIER INN",-38,"Regional Adoption Agency","3811","Accommodation Costs","16/03/2020"
"Wolverhampton City Council","http://opendatacommunities.org/id/metropolitan-district-council/wolverhampton","AMZNMKTPLACE AMAZON.CO",3.87,"Regional Adoption Agency","5999","Catering","16/03/2020"
"Wolverhampton City Council","http://opendatacommunities.org/id/metropolitan-district-council/wolverhampton","REDWINGS LODGE",-77,"Emergency Duty Team","7011","Accommodation Costs","16/03/2020"
"Wolverhampton City Council","http://opendatacommunities.org/id/metropolitan-district-council/wolverhampton","REDWINGS LODGE",77,"Emergency Duty Team","7011","Accommodation Costs","16/03/2020"
"Wolverhampton City Council","http://opendatacommunities.org/id/metropolitan-district-council/wolverhampton","REDWINGS LODGE",39.17,"Emergency Duty Team","7011","Section 17","16/03/2020"
"Wolverhampton City Council","http://opendatacommunities.org/id/metropolitan-district-council/wolverhampton","REDWINGS LODGE",97.5,"Emergency Duty Team","7011","Section 17","16/03/2020"
"Wolverhampton City Council","http://opendatacommunities.org/id/metropolitan-district-council/wolverhampton","AMZNMktplace",11.99,"Bert Williams Leisure Centre","5999","-","16/03/2020"
"Wolverhampton City Council","http://opendatacommunities.org/id/metropolitan-district-council/wolverhampton","Amazon.co.uk JI1KQ7Z25",33.32,"Mayoral Expenses","5969","Equipment - R & M","16/03/2020"
"Wolverhampton City Council","http://opendatacommunities.org/id/metropolitan-district-council/wolverhampton","Amazon.co.uk TD29R25Q5",24.25,"Mayoral Expenses","5969","Equipment - R & M","16/03/2020"
"Wolverhampton City Council","http://opendatacommunities.org/id/metropolitan-district-council/wolverhampton","APPLE.COM/BILL",2.07,"Corporate Parenting","5735","Computing - Purchase of Software","16/03/2020"
"Wolverhampton City Council","http://opendatacommunities.org/id/metropolitan-district-council/wolverhampton","ARGOS LTD",179.99,"LAC Transitions Team","5310","Client Allowances","16/03/2020"
"Wolverhampton City Council","http://opendatacommunities.org/id/metropolitan-district-council/wolverhampton","UNTOUCHABLES",2.87,"Cemeteries","5231","Equipment - Purchase","16/03/2020"
"Wolverhampton City Council","http://opendatacommunities.org/id/metropolitan-district-council/wolverhampton","SCREWFIX DIR LTD",30.79,"Cemeteries","5211","Equipment - Purchase","16/03/2020"
"Wolverhampton City Council","http://opendatacommunities.org/id/metropolitan-district-council/wolverhampton","PAYPAL  B2CRETAIL EBAY",7.91,"SWP � Cohesion Activities","5169","Equipment - Purchase","16/03/2020"
"Wolverhampton City Council","http://opendatacommunities.org/id/metropolitan-district-council/wolverhampton","PAYPAL  B2CRETAIL EBAY",11.91,"SWP � Cohesion Activities","5169","Equipment - Purchase","16/03/2020"
"Wolverhampton City Council","http://opendatacommunities.org/id/metropolitan-district-council/wolverhampton","AMZNMKTPLACE AMAZON.CO",75.97,"COVID 19 - Public Health","5999","Cleaning Supplies and Materials","16/03/2020"
"Wolverhampton City Council","http://opendatacommunities.org/id/metropolitan-district-council/wolverhampton","POUNDLAND LTD 1463",150,"COVID 19 Activity","5310","Cleaning Supplies and Materials","16/03/2020"
"Wolverhampton City Council","http://opendatacommunities.org/id/metropolitan-district-council/wolverhampton","ASDA GROCERIES ONLINE",-0.6,"Upper Pendeford Farm Childrens Home","5411","Provisions (Not for resale)","16/03/2020"
"Wolverhampton City Council","http://opendatacommunities.org/id/metropolitan-district-council/wolverhampton","ASDA GROCERIES ONLINE",226.25,"Upper Pendeford Farm Childrens Home","5411","Provisions (Not for resale)","16/03/2020"
"Wolverhampton City Council","http://opendatacommunities.org/id/metropolitan-district-council/wolverhampton","ASDA GROCERIES ONLINE",5,"Upper Pendeford Farm Childrens Home","5411","Provisions (Not for resale)","16/03/2020"
"Wolverhampton City Council","http://opendatacommunities.org/id/metropolitan-district-council/wolverhampton","AMZNMKTPLACE AMAZON.CO",-24.23,"SEN Sensory Inclusion","5999","Equipment - Purchase","16/03/2020"
"Wolverhampton City Council","http://opendatacommunities.org/id/metropolitan-district-council/wolverhampton","Wix.com",46.57,"Technical Support","5817","Computing - Purchase of Software","16/03/2020"
"Wolverhampton City Council","http://opendatacommunities.org/id/metropolitan-district-council/wolverhampton","WM MORRISONS STORE",37.98,"Ernest Bold Court","5411","Provisions (Not for resale)","16/03/2020"
"Wolverhampton City Council","http://opendatacommunities.org/id/metropolitan-district-council/wolverhampton","POUNDLAND LTD 1463",17.58,"Foundation Studies","5310","R4000","16/03/2020"
"Wolverhampton City Council","http://opendatacommunities.org/id/metropolitan-district-council/wolverhampton","AMZNMktplace",84.75,"Environmental Crime and Consumer Protect","5999","Equipment - Purchase","16/03/2020"
"Wolverhampton City Council","http://opendatacommunities.org/id/metropolitan-district-council/wolverhampton","AMZ ZZTECH-UK",-102.68,"Environmental Crime and Consumer Protect","5999","Equipment - Purchase","16/03/2020"
"Wolverhampton City Council","http://opendatacommunities.org/id/metropolitan-district-council/wolverhampton","CITY OF WOLVERHAMPTON",38,"Centralised External Legal Costs","9399","Services - Fees and Charges","16/03/2020"
"Wolverhampton City Council","http://opendatacommunities.org/id/metropolitan-district-council/wolverhampton","WM MORRISONS STORE",9.17,"Children & Family Contact Services","5411","Cleaning Supplies and Materials","16/03/2020"
"Wolverhampton City Council","http://opendatacommunities.org/id/metropolitan-district-council/wolverhampton","POST OFFICE COUNTER",29.17,"Children & Family Contact Services","9402","Stationery","16/03/2020"
"Wolverhampton City Council","http://opendatacommunities.org/id/metropolitan-district-council/wolverhampton","COUNTY PHARMACY LIMITE",12.42,"Children & Family Contact Services","8099","Equipment - Health and Safety","16/03/2020"
"Wolverhampton City Council","http://opendatacommunities.org/id/metropolitan-district-council/wolverhampton","CANNOCK CHASE COUNCIL",385,"Food and Consumer Safety","9399","Professional fees","16/03/2020"
"Wolverhampton City Council","http://opendatacommunities.org/id/metropolitan-district-council/wolverhampton","CO-OP GROUP 070362",10.8,"Northicote Farm","5411","Provisions (Not for resale)","16/03/2020"
"Wolverhampton City Council","http://opendatacommunities.org/id/metropolitan-district-council/wolverhampton","WICKES WOLVERHAMPTON",24.17,"Northicote Farm","5211","R4000","16/03/2020"
"Wolverhampton City Council","http://opendatacommunities.org/id/metropolitan-district-council/wolverhampton","HMCOURTS-SERVICE.G",75,"Mental Health Assessment & Care Mgmt","9222","Services - Fees and Charges","16/03/2020"
"Wolverhampton City Council","http://opendatacommunities.org/id/metropolitan-district-council/wolverhampton","ARGOS LTD",58.75,"EIP Locality 5","5310","Grant Payments","16/03/2020"
"Wolverhampton City Council","http://opendatacommunities.org/id/metropolitan-district-council/wolverhampton","B&M RETAIL",12.5,"LAC Transitions Team","5310","Client Allowances","16/03/2020"
"Wolverhampton City Council","http://opendatacommunities.org/id/metropolitan-district-council/wolverhampton","SAINSBURYS SACAT (2340",2.75,"Key to Inspiration","5411","Subsistence","16/03/2020"
"Wolverhampton City Council","http://opendatacommunities.org/id/metropolitan-district-council/wolverhampton","SAINSBURYS SACAT (2340",9.65,"Key to Inspiration","5411","Subsistence","16/03/2020"
"Wolverhampton City Council","http://opendatacommunities.org/id/metropolitan-district-council/wolverhampton","ASDA GROCERIES ONLINE",-10.02,"Key to Inspiration","5411","-","16/03/2020"
"Wolverhampton City Council","http://opendatacommunities.org/id/metropolitan-district-council/wolverhampton","WWW.ICELAND.CO.UK",94.73,"Key to Inspiration","5411","-","16/03/2020"
"Wolverhampton City Council","http://opendatacommunities.org/id/metropolitan-district-council/wolverhampton","ASDA GROCERIES ONLINE",128.51,"Key to Inspiration","5411","-","16/03/2020"
"Wolverhampton City Council","http://opendatacommunities.org/id/metropolitan-district-council/wolverhampton","ASDA GROCERIES ONLINE",-1.45,"Key to Inspiration","5411","-","16/03/2020"
"Wolverhampton City Council","http://opendatacommunities.org/id/metropolitan-district-council/wolverhampton","AMZNMktplace",72.5,"Key to Inspiration","5999","-","16/03/2020"
"Wolverhampton City Council","http://opendatacommunities.org/id/metropolitan-district-council/wolverhampton","FACEBK  37YUTRJCW2",37.99,"The Little Civic","7311","Marketing \ Non-staff advertising","16/03/2020"
"Wolverhampton City Council","http://opendatacommunities.org/id/metropolitan-district-council/wolverhampton","ASDA STORE",9.3,"Bradley Resource Centre","5411","Provisions (Not for resale)","16/03/2020"
"Wolverhampton City Council","http://opendatacommunities.org/id/metropolitan-district-council/wolverhampton","PREMIER",7.45,"Bradley Resource Centre","5499","Provisions (Not for resale)","16/03/2020"
"Wolverhampton City Council","http://opendatacommunities.org/id/metropolitan-district-council/wolverhampton","ASDA GROCERIES ONLINE",-16.67,"Bradley Resource Centre","5411","Provisions (Not for resale)","16/03/2020"
"Wolverhampton City Council","http://opendatacommunities.org/id/metropolitan-district-council/wolverhampton","ASDA GROCERIES ONLINE",208.03,"Bradley Resource Centre","5411","Provisions (Not for resale)","16/03/2020"
"Wolverhampton City Council","http://opendatacommunities.org/id/metropolitan-district-council/wolverhampton","AMZNMktplace",37.48,"Power2 Team","5999","Direct Work With Children","13/03/2020"
"Wolverhampton City Council","http://opendatacommunities.org/id/metropolitan-district-council/wolverhampton","AMZNMktplace",11.25,"Power2 Team","5999","Direct Work With Children","13/03/2020"
"Wolverhampton City Council","http://opendatacommunities.org/id/metropolitan-district-council/wolverhampton","TESCO STORES 5503",22.25,"Key to Inspiration","5411","-","13/03/2020"
"Wolverhampton City Council","http://opendatacommunities.org/id/metropolitan-district-council/wolverhampton","CARESHOP",192.14,"Specialist Support Service - North","5999","Equipment - Purchase","13/03/2020"
"Wolverhampton City Council","http://opendatacommunities.org/id/metropolitan-district-council/wolverhampton","WWW.WMCA.CO.UK",56.5,"IMPACT","9399","R3300","13/03/2020"
"Wolverhampton City Council","http://opendatacommunities.org/id/metropolitan-district-council/wolverhampton","WWW.WMCA.CO.UK",56.5,"IMPACT","9399","R3300","13/03/2020"
"Wolverhampton City Council","http://opendatacommunities.org/id/metropolitan-district-council/wolverhampton","MATALAN",35.08,"IMPACT","5691","R4000","13/03/2020"
"Wolverhampton City Council","http://opendatacommunities.org/id/metropolitan-district-council/wolverhampton","NATWEST BANK",250,"NRPF","6011","No Recourse to Public Funds","13/03/2020"
"Wolverhampton City Council","http://opendatacommunities.org/id/metropolitan-district-council/wolverhampton","POST OFFICE COUNTER",1.58,"LAC Transitions Team","9402","Client Allowances","13/03/2020"
"Wolverhampton City Council","http://opendatacommunities.org/id/metropolitan-district-council/wolverhampton","000002200500000",20,"CIN/CP Social Work Unit - Area 6","6011","Section 17","13/03/2020"
"Wolverhampton City Council","http://opendatacommunities.org/id/metropolitan-district-council/wolverhampton","AMZNMktplace",18.32,"Regional Adoption Agency","5999","Stationery","13/03/2020"
"Wolverhampton City Council","http://opendatacommunities.org/id/metropolitan-district-council/wolverhampton","WWW.AIRQUEE.CO.UK",390,"Aldersley Leisure Village","5945","Equipment - Hire","13/03/2020"
"Wolverhampton City Council","http://opendatacommunities.org/id/metropolitan-district-council/wolverhampton","CURRYS ONLINE",24.17,"Looked After Team 2","5732","Direct Work With Children","13/03/2020"
"Wolverhampton City Council","http://opendatacommunities.org/id/metropolitan-district-council/wolverhampton","POST OFFICE COUNTER",100,"Corporate Parenting","9402","Direct Work With Children","13/03/2020"
"Wolverhampton City Council","http://opendatacommunities.org/id/metropolitan-district-council/wolverhampton","POST OFFICE COUNTER",26.6,"Looked After Team 2","9402","Comms - Postage","13/03/2020"
"Wolverhampton City Council","http://opendatacommunities.org/id/metropolitan-district-council/wolverhampton","POST OFFICE COUNTER",11,"LAC Team","9402","Comms - Postage","13/03/2020"
"Wolverhampton City Council","http://opendatacommunities.org/id/metropolitan-district-council/wolverhampton","POST OFFICE COUNTER",11,"Looked After Team 2","9402","Comms - Postage","13/03/2020"
"Wolverhampton City Council","http://opendatacommunities.org/id/metropolitan-district-council/wolverhampton","POST OFFICE COUNTER",8.7,"LAC Team","9402","Comms - Postage","13/03/2020"
"Wolverhampton City Council","http://opendatacommunities.org/id/metropolitan-district-council/wolverhampton","POST OFFICE COUNTER",8.7,"LAC Team","9402","Comms - Postage","13/03/2020"
"Wolverhampton City Council","http://opendatacommunities.org/id/metropolitan-district-council/wolverhampton","AMZNMktplace",19.98,"Looked After Team 2","5999","Electricity","13/03/2020"
"Wolverhampton City Council","http://opendatacommunities.org/id/metropolitan-district-council/wolverhampton","NSPCC",35,"AES Staff Development","8299","Training Expenses","13/03/2020"
"Wolverhampton City Council","http://opendatacommunities.org/id/metropolitan-district-council/wolverhampton","Amazon.co.uk R14C71A75",23.61,"Business Support Services","5969","Equipment - Purchase","13/03/2020"
"Wolverhampton City Council","http://opendatacommunities.org/id/metropolitan-district-council/wolverhampton","Amazon.co.uk LT7B34QG5",19.67,"Business Support Services","5969","Equipment - Purchase","13/03/2020"
"Wolverhampton City Council","http://opendatacommunities.org/id/metropolitan-district-council/wolverhampton","Amazon.co.uk 410ET0F35",19.68,"Business Support Services","5969","Equipment - Purchase","13/03/2020"
"Wolverhampton City Council","http://opendatacommunities.org/id/metropolitan-district-council/wolverhampton","Amazon.co.uk OE9BC4WM5",19.67,"Business Support Services","5969","Equipment - Purchase","13/03/2020"
"Wolverhampton City Council","http://opendatacommunities.org/id/metropolitan-district-council/wolverhampton","WILKO RETAIL LIMITED",24,"Art Gallery","5399","-","13/03/2020"
"Wolverhampton City Council","http://opendatacommunities.org/id/metropolitan-district-council/wolverhampton","TIPPERS WOLVERHAMPTON",-17.34,"Transportation General","5072","-","13/03/2020"
"Wolverhampton City Council","http://opendatacommunities.org/id/metropolitan-district-council/wolverhampton","TIPPERS WOLVERHAMPTON",11.99,"Transportation General","5072","-","13/03/2020"
"Wolverhampton City Council","http://opendatacommunities.org/id/metropolitan-district-council/wolverhampton","TIPPERS WOLVERHAMPTON",41.58,"Transportation General","5072","-","13/03/2020"
"Wolverhampton City Council","http://opendatacommunities.org/id/metropolitan-district-council/wolverhampton","TIPPERS WOLVERHAMPTON",43.92,"Transportation General","5072","-","13/03/2020"
"Wolverhampton City Council","http://opendatacommunities.org/id/metropolitan-district-council/wolverhampton","TVLICENSING.CO.UK",154.5,"Specialist Support Service - North","7392","Services - General Licences","13/03/2020"
"Wolverhampton City Council","http://opendatacommunities.org/id/metropolitan-district-council/wolverhampton","AMZNMktplace",4.99,"Technical Support","5999","Computing - Purchase of Hardware","13/03/2020"
"Wolverhampton City Council","http://opendatacommunities.org/id/metropolitan-district-council/wolverhampton","AMZNMKTPLACE AMAZON.CO",6.84,"Global Budgets","5999","Books","13/03/2020"
"Wolverhampton City Council","http://opendatacommunities.org/id/metropolitan-district-council/wolverhampton","CIPD INTEGRA",187,"Workforce Development","8999","Training Expenses","13/03/2020"
"Wolverhampton City Council","http://opendatacommunities.org/id/metropolitan-district-council/wolverhampton","CARVER/WOLVERHAMPTON/L",137.62,"Direct Schools","5211","Materials","13/03/2020"
"Wolverhampton City Council","http://opendatacommunities.org/id/metropolitan-district-council/wolverhampton","BRITANNIA",39,"EIP Locality 5","7011","Grant Payments","13/03/2020"
"Wolverhampton City Council","http://opendatacommunities.org/id/metropolitan-district-council/wolverhampton","BRASSINGTON & CO",20,"Northicote Farm","7299","Refuse Collection","13/03/2020"
"Wolverhampton City Council","http://opendatacommunities.org/id/metropolitan-district-council/wolverhampton","OCL KINGSWINFORD",156.75,"Waste Coll & Recycling Serv General","5261","-","12/03/2020"
"Wolverhampton City Council","http://opendatacommunities.org/id/metropolitan-district-council/wolverhampton","PAYPAL  ART SHOP EBAY",9.4,"Phoebe Cummings - ACE NPO WAG","5970","Materials","12/03/2020"
"Wolverhampton City Council","http://opendatacommunities.org/id/metropolitan-district-council/wolverhampton","ARGOS LTD",35.95,"Power2 Team","5310","Direct Work With Children","12/03/2020"
"Wolverhampton City Council","http://opendatacommunities.org/id/metropolitan-district-council/wolverhampton","THE RED HOUSE",320,"Bradley Resource Centre","5691","Clothing / Uniforms","12/03/2020"
"Wolverhampton City Council","http://opendatacommunities.org/id/metropolitan-district-council/wolverhampton","Cineworld WOL CP",13.35,"Key to Inspiration","7922","Educ Trips, Holidays, Outings, Activity","12/03/2020"
"Wolverhampton City Council","http://opendatacommunities.org/id/metropolitan-district-council/wolverhampton","Amazon Prime FO0EW5YZ5",6.66,"Key to Inspiration","5968","Fixtures and Fittings - Purchases","12/03/2020"
"Wolverhampton City Council","http://opendatacommunities.org/id/metropolitan-district-council/wolverhampton","WWW.ICELAND.CO.UK",100.89,"Bradley Resource Centre","5411","Provisions (Not for resale)","12/03/2020"
"Wolverhampton City Council","http://opendatacommunities.org/id/metropolitan-district-council/wolverhampton","CUMMINGS BROTHERS LOCK",16.4,"Caretakers Community Centre","7399","Equipment - R & M","12/03/2020"
"Wolverhampton City Council","http://opendatacommunities.org/id/metropolitan-district-council/wolverhampton","CUMMINGS BROTHERS LOCK",10,"Caretakers Community Centre","7399","Equipment - R & M","12/03/2020"
"Wolverhampton City Council","http://opendatacommunities.org/id/metropolitan-district-council/wolverhampton","CUMMINGS BROTHERS LOCK",9,"Caretakers Community Centre","7399","Equipment - R & M","12/03/2020"
"Wolverhampton City Council","http://opendatacommunities.org/id/metropolitan-district-council/wolverhampton","CUMMINGS BROTHERS LOCK",4.5,"Caretakers Community Centre","7399","Equipment - R & M","12/03/2020"
"Wolverhampton City Council","http://opendatacommunities.org/id/metropolitan-district-council/wolverhampton","WAITROSE 696",1,"Discretionary Fund","5411","Materials","12/03/2020"
"Wolverhampton City Council","http://opendatacommunities.org/id/metropolitan-district-council/wolverhampton","ASDA STORES 4274",0.45,"Discretionary Fund","5411","Materials","12/03/2020"
"Wolverhampton City Council","http://opendatacommunities.org/id/metropolitan-district-council/wolverhampton","RAGLAN STREET ST MARK",200,"Key to Inspiration","6011","Educ Trips, Holidays, Outings, Activity","12/03/2020"
"Wolverhampton City Council","http://opendatacommunities.org/id/metropolitan-district-council/wolverhampton","EUROSTAR INTERNET",120.2,"Court Team","4112","Section 17","12/03/2020"
"Wolverhampton City Council","http://opendatacommunities.org/id/metropolitan-district-council/wolverhampton","PREMIER INN 44536545",447.5,"Regional Adoption Agency","5812","Accommodation Costs","12/03/2020"
"Wolverhampton City Council","http://opendatacommunities.org/id/metropolitan-district-council/wolverhampton","PREMIER INN",194,"Regional Adoption Agency","3811","Accommodation Costs","12/03/2020"
"Wolverhampton City Council","http://opendatacommunities.org/id/metropolitan-district-council/wolverhampton","AMZNMKTPLACE AMAZON.CO",7.24,"Regional Adoption Agency","5999","Stationery","12/03/2020"
"Wolverhampton City Council","http://opendatacommunities.org/id/metropolitan-district-council/wolverhampton","AMZNMKTPLACE AMAZON.CO",10.33,"Regional Adoption Agency","5999","Materials","12/03/2020"
"Wolverhampton City Council","http://opendatacommunities.org/id/metropolitan-district-council/wolverhampton","AMZNMKTPLACE AMAZON.CO",5.33,"Regional Adoption Agency","5999","Materials","12/03/2020"
"Wolverhampton City Council","http://opendatacommunities.org/id/metropolitan-district-council/wolverhampton","Avanti West Coast",8.2,"Regional Adoption Agency","4112","-","12/03/2020"
"Wolverhampton City Council","http://opendatacommunities.org/id/metropolitan-district-council/wolverhampton","Avanti West Coast",8.2,"Regional Adoption Agency","4112","Public Transport","12/03/2020"
"Wolverhampton City Council","http://opendatacommunities.org/id/metropolitan-district-council/wolverhampton","ALDI 48 772",20.1,"Education Business Partnership","5411","-","12/03/2020"
"Wolverhampton City Council","http://opendatacommunities.org/id/metropolitan-district-council/wolverhampton","AMZNMktplace",26.63,"SWP � Cohesion Activities","5999","Equipment - Purchase","12/03/2020"
"Wolverhampton City Council","http://opendatacommunities.org/id/metropolitan-district-council/wolverhampton","REDWINGS LODGE",169,"EIP Locality 5","7011","Grant Payments","12/03/2020"
"Wolverhampton City Council","http://opendatacommunities.org/id/metropolitan-district-council/wolverhampton","WEST PARK NEWS",5.2,"EIP Locality 5","5411","R4000","12/03/2020"
"Wolverhampton City Council","http://opendatacommunities.org/id/metropolitan-district-council/wolverhampton","Trainline",28.03,"AES Staff Development","4112","Public Transport","12/03/2020"
"Wolverhampton City Council","http://opendatacommunities.org/id/metropolitan-district-council/wolverhampton","RAYTON ELECT WSALERS L",69.6,"Cleaning of Buildings - General","5999","-","12/03/2020"
"Wolverhampton City Council","http://opendatacommunities.org/id/metropolitan-district-council/wolverhampton","CARVER/WOLVERHAMPTON/L",47.57,"Cleaning of Buildings - General","5211","-","12/03/2020"
"Wolverhampton City Council","http://opendatacommunities.org/id/metropolitan-district-council/wolverhampton","AMZNMKTPLACE AMAZON.CO",11.8,"Global Budgets","5999","Books","12/03/2020"
"Wolverhampton City Council","http://opendatacommunities.org/id/metropolitan-district-council/wolverhampton","AMZNMktplace",10.33,"Global Budgets","5999","Books","12/03/2020"
"Wolverhampton City Council","http://opendatacommunities.org/id/metropolitan-district-council/wolverhampton","AMZNMktplace",59.72,"Blakenhall Commty & Healthy Living Ctr","5999","R4000","12/03/2020"
"Wolverhampton City Council","http://opendatacommunities.org/id/metropolitan-district-council/wolverhampton","AMZNMKTPLACE AMAZON.CO",9.47,"Global Budgets","5999","Books","12/03/2020"
"Wolverhampton City Council","http://opendatacommunities.org/id/metropolitan-district-council/wolverhampton","Trainline",-31.4,"Trading Standards","4112","Public Transport","12/03/2020"
"Wolverhampton City Council","http://opendatacommunities.org/id/metropolitan-district-council/wolverhampton","AMZNMKTPLACE AMAZON.CO",24.07,"Trading Standards","5999","R4000","12/03/2020"
"Wolverhampton City Council","http://opendatacommunities.org/id/metropolitan-district-council/wolverhampton","thetrainline.com",43.85,"Trading Standards","4112","Public Transport","12/03/2020"
"Wolverhampton City Council","http://opendatacommunities.org/id/metropolitan-district-council/wolverhampton","Trainline",43.65,"Trading Standards","4112","Public Transport","12/03/2020"
"Wolverhampton City Council","http://opendatacommunities.org/id/metropolitan-district-council/wolverhampton","POST OFFICE COUNTER",4,"Adult Services - West","9402","Comms - Postage","12/03/2020"
"Wolverhampton City Council","http://opendatacommunities.org/id/metropolitan-district-council/wolverhampton","Avanti West Coast",-24.6,"Risk Management & Insurance","4112","Public Transport","12/03/2020"
"Wolverhampton City Council","http://opendatacommunities.org/id/metropolitan-district-council/wolverhampton","Central Taxis Limited",3.5,"Adult Services - East","4121","Client Transport","12/03/2020"
"Wolverhampton City Council","http://opendatacommunities.org/id/metropolitan-district-council/wolverhampton","HOME BARGAINS WOLVERHA",26.33,"Passenger Transport - General","5251","Materials","11/03/2020"
"Wolverhampton City Council","http://opendatacommunities.org/id/metropolitan-district-council/wolverhampton","FACEBK 7TJQMS6AR2",500,"Communications & Marketing - General","7311","R4317","11/03/2020"
"Wolverhampton City Council","http://opendatacommunities.org/id/metropolitan-district-council/wolverhampton","AMZNMktplace",8.88,"Audience Development","5999","R4317","11/03/2020"
"Wolverhampton City Council","http://opendatacommunities.org/id/metropolitan-district-council/wolverhampton","Up to Speed Training a",144,"IMPACT","8249","Training Expenses","11/03/2020"
"Wolverhampton City Council","http://opendatacommunities.org/id/metropolitan-district-council/wolverhampton","PAYPAL  CLPE",190,"LEP - Leadership & Management Programme","8398","Training Expenses","11/03/2020"
"Wolverhampton City Council","http://opendatacommunities.org/id/metropolitan-district-council/wolverhampton","WM MORRISON FOOD.COM",166.45,"Discretionary Fund","5411","Materials","11/03/2020"
"Wolverhampton City Council","http://opendatacommunities.org/id/metropolitan-district-council/wolverhampton","SAINSBURYS SACAT 2040",11.67,"Mayoral Expenses","5411","Clothing / Uniforms","11/03/2020"
"Wolverhampton City Council","http://opendatacommunities.org/id/metropolitan-district-council/wolverhampton","Amazon.co.uk FJ54P0HY5",16.66,"Regional Adoption Agency","5969","Materials","11/03/2020"
"Wolverhampton City Council","http://opendatacommunities.org/id/metropolitan-district-council/wolverhampton","AMZNMKTPLACE AMAZON.CO",2.92,"Regional Adoption Agency","5999","Stationery","11/03/2020"
"Wolverhampton City Council","http://opendatacommunities.org/id/metropolitan-district-council/wolverhampton","AMZNMKTPLACE AMAZON.CO",2.42,"Regional Adoption Agency","5999","Stationery","11/03/2020"
"Wolverhampton City Council","http://opendatacommunities.org/id/metropolitan-district-council/wolverhampton","Amazon.co.uk JA2MN6Z65",13.62,"Regional Adoption Agency","5969","Stationery","11/03/2020"
"Wolverhampton City Council","http://opendatacommunities.org/id/metropolitan-district-council/wolverhampton","TOOLSTATION LTD",28.32,"Ground Maintenance East","5211","Materials","11/03/2020"
"Wolverhampton City Council","http://opendatacommunities.org/id/metropolitan-district-council/wolverhampton","SELCO TRADING CTR",75.6,"Ground Maintenance East","5211","Materials","11/03/2020"
"Wolverhampton City Council","http://opendatacommunities.org/id/metropolitan-district-council/wolverhampton","SCREWFIX DIR LTD",6.9,"Ground Maintenance East","5211","Materials","11/03/2020"
"Wolverhampton City Council","http://opendatacommunities.org/id/metropolitan-district-council/wolverhampton","RESPONSTER PLUS PLAN",15.12,"City Direct","5734","Computing - Purchase of Software","11/03/2020"
"Wolverhampton City Council","http://opendatacommunities.org/id/metropolitan-district-council/wolverhampton","thetrainline.com",131.16,"LAC Transitions Team","4112","Public Transport","11/03/2020"
"Wolverhampton City Council","http://opendatacommunities.org/id/metropolitan-district-council/wolverhampton","WWW.POSTOFFICESHOP.CO.",142.49,"Youth Offending Team","5111","Comms - Postage","11/03/2020"
"Wolverhampton City Council","http://opendatacommunities.org/id/metropolitan-district-council/wolverhampton","REDWINGS LODGE",98,"EIP Locality 5","7011","Grant Payments","11/03/2020"
"Wolverhampton City Council","http://opendatacommunities.org/id/metropolitan-district-council/wolverhampton","PPOINT_ SANDHU",10,"EIP Locality 5","5411","Grant Payments","11/03/2020"
"Wolverhampton City Council","http://opendatacommunities.org/id/metropolitan-district-council/wolverhampton","Amazon.co.uk SI92J3MG5",29.92,"Work Related Studies","5969","Equipment - Purchase","11/03/2020"
"Wolverhampton City Council","http://opendatacommunities.org/id/metropolitan-district-council/wolverhampton","WILKO RETAIL LIMITED",7,"Wolverhampton Indoor and Open Market","5399","R4000","11/03/2020"
"Wolverhampton City Council","http://opendatacommunities.org/id/metropolitan-district-council/wolverhampton","CUMMINGS BROTHERS LOCK",8.4,"Cleaning of Buildings - General","7399","-","11/03/2020"
"Wolverhampton City Council","http://opendatacommunities.org/id/metropolitan-district-council/wolverhampton","WICKES WOLVERHAMPTON",52.67,"Duke Street Bungalows","5211","Materials","11/03/2020"
"Wolverhampton City Council","http://opendatacommunities.org/id/metropolitan-district-council/wolverhampton","CITY OF WOLVERHAMPTON",16,"LAC Team","9399","Financial Assistance In Exceptional Circ","11/03/2020"
"Wolverhampton City Council","http://opendatacommunities.org/id/metropolitan-district-council/wolverhampton","POST OFFICE COUNTER",210,"Inclusion Support","9402","Comms - Postage","11/03/2020"
"Wolverhampton City Council","http://opendatacommunities.org/id/metropolitan-district-council/wolverhampton","POST OFFICE COUNTER",140,"Inclusion Support","9402","Comms - Postage","11/03/2020"
"Wolverhampton City Council","http://opendatacommunities.org/id/metropolitan-district-council/wolverhampton","AMZNMktplace",2.07,"Fleet Management","5999","Materials","11/03/2020"
"Wolverhampton City Council","http://opendatacommunities.org/id/metropolitan-district-council/wolverhampton","Amazon.co.uk VD8YR8W55",27.44,"EIP Locality 7","5969","Grant Payments","11/03/2020"
"Wolverhampton City Council","http://opendatacommunities.org/id/metropolitan-district-council/wolverhampton","AMZNMKTPLACE AMAZON.CO",27.83,"EIP Locality 7","5999","Grant Payments","11/03/2020"
"Wolverhampton City Council","http://opendatacommunities.org/id/metropolitan-district-council/wolverhampton","HOTEL MERCURE",56.67,"Adult Services - East","3579","Accommodation Costs","11/03/2020"
"Wolverhampton City Council","http://opendatacommunities.org/id/metropolitan-district-council/wolverhampton","NATWEST BANK",200,"Democratic Support","6011","Public Transport","11/03/2020"
"Wolverhampton City Council","http://opendatacommunities.org/id/metropolitan-district-council/wolverhampton","HM PASSPORT OFFICE",85,"Lac Transitions","9399","Services - Supplies & Services to users","10/03/2020"
"Wolverhampton City Council","http://opendatacommunities.org/id/metropolitan-district-council/wolverhampton","DVSA  LEARNER",23,"Lac Transitions","9399","Services - Supplies & Services to users","10/03/2020"
"Wolverhampton City Council","http://opendatacommunities.org/id/metropolitan-district-council/wolverhampton","SCREWFIX DIRECT",20.5,"Car Parks Operational Staff","5200","R4000","10/03/2020"
"Wolverhampton City Council","http://opendatacommunities.org/id/metropolitan-district-council/wolverhampton","AMZNMktplace",74.98,"Audience Development","5999","R4317","10/03/2020"
"Wolverhampton City Council","http://opendatacommunities.org/id/metropolitan-district-council/wolverhampton","AMZNMktplace",37.42,"Audience Development","5999","R4317","10/03/2020"
"Wolverhampton City Council","http://opendatacommunities.org/id/metropolitan-district-council/wolverhampton","AMZNMktplace",28.87,"Audience Development","5999","R4317","10/03/2020"
"Wolverhampton City Council","http://opendatacommunities.org/id/metropolitan-district-council/wolverhampton","AMZNMktplace",28.88,"Audience Development","5999","R4317","10/03/2020"
"Wolverhampton City Council","http://opendatacommunities.org/id/metropolitan-district-council/wolverhampton","ASDA GROCERIES ONLINE",193.25,"Bradley Resource Centre","5411","Provisions (Not for resale)","10/03/2020"
"Wolverhampton City Council","http://opendatacommunities.org/id/metropolitan-district-council/wolverhampton","JAMES LISTER & SONS LT",44.4,"Street Lighting Maintenance","5085","Materials","10/03/2020"
"Wolverhampton City Council","http://opendatacommunities.org/id/metropolitan-district-council/wolverhampton","AMZNMktplace",193.43,"Key to Inspiration","5999","R4007","10/03/2020"
"Wolverhampton City Council","http://opendatacommunities.org/id/metropolitan-district-council/wolverhampton","NATWEST BANK",200,"NRPF","6011","No Recourse to Public Funds","10/03/2020"
"Wolverhampton City Council","http://opendatacommunities.org/id/metropolitan-district-council/wolverhampton","POST OFFICE COUNTER",1.58,"LAC Transitions Team","9402","Client Allowances","10/03/2020"
"Wolverhampton City Council","http://opendatacommunities.org/id/metropolitan-district-council/wolverhampton","AMZNMktplace",36.57,"Regional Adoption Agency","5999","Materials","10/03/2020"
"Wolverhampton City Council","http://opendatacommunities.org/id/metropolitan-district-council/wolverhampton","AMZNMKTPLACE AMAZON.CO",10.21,"Regional Adoption Agency","5999","Equipment - Purchase","10/03/2020"
"Wolverhampton City Council","http://opendatacommunities.org/id/metropolitan-district-council/wolverhampton","AMZNMktplace",11.78,"Regional Adoption Agency","5999","Stationery","10/03/2020"
"Wolverhampton City Council","http://opendatacommunities.org/id/metropolitan-district-council/wolverhampton","AMZNMktplace",26.57,"Regional Adoption Agency","5999","Stationery","10/03/2020"
"Wolverhampton City Council","http://opendatacommunities.org/id/metropolitan-district-council/wolverhampton","ASDA SUPERSTORE",14,"Mayoral Expenses","5411","Hospitality","10/03/2020"
"Wolverhampton City Council","http://opendatacommunities.org/id/metropolitan-district-council/wolverhampton","thetrainline.com",11.55,"Pupil Premium","4112","Public Transport","10/03/2020"
"Wolverhampton City Council","http://opendatacommunities.org/id/metropolitan-district-council/wolverhampton","Trainline",90.4,"Pupil Premium","4112","Public Transport","10/03/2020"
"Wolverhampton City Council","http://opendatacommunities.org/id/metropolitan-district-council/wolverhampton","SAINSBURYS (2340)",42.65,"Power2 Team","5411","Hospitality","10/03/2020"
"Wolverhampton City Council","http://opendatacommunities.org/id/metropolitan-district-council/wolverhampton","BUYER DIRECT LTD",749,"COVID 19 Activity","5399","Equipment - Purchase","10/03/2020"
"Wolverhampton City Council","http://opendatacommunities.org/id/metropolitan-district-council/wolverhampton","BUYER DIRECT LTD",3000,"COVID 19 Activity","5399","Equipment - Purchase","10/03/2020"
"Wolverhampton City Council","http://opendatacommunities.org/id/metropolitan-district-council/wolverhampton","RAILCARD.CO.UK",30,"Looked After Team 2","4112","Financial Assistance In Exceptional Circ","10/03/2020"
"Wolverhampton City Council","http://opendatacommunities.org/id/metropolitan-district-council/wolverhampton","REDWINGS LODGE",45,"EIP Locality 5","7011","Grant Payments","10/03/2020"
"Wolverhampton City Council","http://opendatacommunities.org/id/metropolitan-district-council/wolverhampton","2CO.COM RSJOOMLA.COM",18.2,"ICT Services","5734","Computing - Purchase of Software","10/03/2020"
"Wolverhampton City Council","http://opendatacommunities.org/id/metropolitan-district-council/wolverhampton","2CO.COM RSJOOMLA.COM",20.8,"ICT Services","5734","Computing - Purchase of Software","10/03/2020"
"Wolverhampton City Council","http://opendatacommunities.org/id/metropolitan-district-council/wolverhampton","AMZNMktplace",10.21,"Creative Studies Delivery Area","5999","Equipment - Purchase","10/03/2020"
"Wolverhampton City Council","http://opendatacommunities.org/id/metropolitan-district-council/wolverhampton","WWW.WOLVERHAMPTON.GOV.",71.09,"LAC Transitions Accommodation","9399","Client Allowances","10/03/2020"
"Wolverhampton City Council","http://opendatacommunities.org/id/metropolitan-district-council/wolverhampton","WWW.WOLVERHAMPTON.GOV.",70.44,"LAC Transitions Accommodation","9399","Client Allowances","10/03/2020"
"Wolverhampton City Council","http://opendatacommunities.org/id/metropolitan-district-council/wolverhampton","ROYAL CARPETS",329.17,"LAC Transitions Accommodation","5713","Client Allowances","10/03/2020"
"Wolverhampton City Council","http://opendatacommunities.org/id/metropolitan-district-council/wolverhampton","WEST MID TRAVEL",446.35,"Community Enablement","4131","Public Transport","10/03/2020"
"Wolverhampton City Council","http://opendatacommunities.org/id/metropolitan-district-council/wolverhampton","Trainline",20.81,"SEN Special Education Admin","4112","R3300","10/03/2020"
"Wolverhampton City Council","http://opendatacommunities.org/id/metropolitan-district-council/wolverhampton","ASDA GROCERIES ONLINE",47.7,"Ernest Bold Court","5411","Provisions (Not for resale)","10/03/2020"
"Wolverhampton City Council","http://opendatacommunities.org/id/metropolitan-district-council/wolverhampton","Trainline",9.62,"Head of Service - CINCP","4112","Public Transport","10/03/2020"
"Wolverhampton City Council","http://opendatacommunities.org/id/metropolitan-district-council/wolverhampton","thetrainline.com",96.26,"Head of Service - LAC","4112","Public Transport","10/03/2020"
"Wolverhampton City Council","http://opendatacommunities.org/id/metropolitan-district-council/wolverhampton","thetrainline.com",13.18,"Head of Service - LAC","4112","Pupil Support","10/03/2020"
"Wolverhampton City Council","http://opendatacommunities.org/id/metropolitan-district-council/wolverhampton","ATT",188.25,"Workforce Development","8931","Training Expenses","10/03/2020"
"Wolverhampton City Council","http://opendatacommunities.org/id/metropolitan-district-council/wolverhampton","NATWEST BANK",200,"NRPF","6011","No Recourse to Public Funds","10/03/2020"
"Wolverhampton City Council","http://opendatacommunities.org/id/metropolitan-district-council/wolverhampton","CardtronicsUK",100,"Power2 Team","6011","Direct Work With Children","09/03/2020"
"Wolverhampton City Council","http://opendatacommunities.org/id/metropolitan-district-council/wolverhampton","FARMFOODS 603",21,"Bradley Resource Centre","5411","Provisions (Not for resale)","09/03/2020"
"Wolverhampton City Council","http://opendatacommunities.org/id/metropolitan-district-council/wolverhampton","GOOGLE  ADS9680351324",416.67,"Communications & Marketing - General","5968","R4317","09/03/2020"
"Wolverhampton City Council","http://opendatacommunities.org/id/metropolitan-district-council/wolverhampton","AMZNMktplace",17.15,"Communications & Marketing - General","5999","R4317","09/03/2020"
"Wolverhampton City Council","http://opendatacommunities.org/id/metropolitan-district-council/wolverhampton","AMZNMktplace",6.82,"Audience Development","5999","R4317","09/03/2020"
"Wolverhampton City Council","http://opendatacommunities.org/id/metropolitan-district-council/wolverhampton","EB  DATA PROTECTION FO",100,"Communications & Marketing - General","7399","Training Expenses","09/03/2020"
"Wolverhampton City Council","http://opendatacommunities.org/id/metropolitan-district-council/wolverhampton","NAMESCO",34.99,"Communications & Marketing - General","4816","R4317","09/03/2020"
"Wolverhampton City Council","http://opendatacommunities.org/id/metropolitan-district-council/wolverhampton","AMZNMktplace",131.37,"Audience Development","5999","R4317","09/03/2020"
"Wolverhampton City Council","http://opendatacommunities.org/id/metropolitan-district-council/wolverhampton","AMZNMktplace",17.33,"Audience Development","5999","R4317","09/03/2020"
"Wolverhampton City Council","http://opendatacommunities.org/id/metropolitan-district-council/wolverhampton","MARKS&SPENCER PLC SACA",14.75,"Audience Development","5411","Catering","09/03/2020"
"Wolverhampton City Council","http://opendatacommunities.org/id/metropolitan-district-council/wolverhampton","WWW.ICELAND.CO.UK",80.75,"Key to Inspiration","5411","Subsistence","09/03/2020"
"Wolverhampton City Council","http://opendatacommunities.org/id/metropolitan-district-council/wolverhampton","ASDA GROCERIES ONLINE",1.45,"Key to Inspiration","5411","Subsistence","09/03/2020"
"Wolverhampton City Council","http://opendatacommunities.org/id/metropolitan-district-council/wolverhampton","ASDA GROCERIES ONLINE",130.41,"Key to Inspiration","5411","Subsistence","09/03/2020"
"Wolverhampton City Council","http://opendatacommunities.org/id/metropolitan-district-council/wolverhampton","ASDA STORE",27.82,"Bradley Resource Centre","5411","Provisions (Not for resale)","09/03/2020"
"Wolverhampton City Council","http://opendatacommunities.org/id/metropolitan-district-council/wolverhampton","ASDA GROCERIES ONLINE",147.88,"Bradley Resource Centre","5411","Provisions (Not for resale)","09/03/2020"
"Wolverhampton City Council","http://opendatacommunities.org/id/metropolitan-district-council/wolverhampton","ARGOS LTD",70.18,"Parent/Partnership Service","5310","R4000","09/03/2020"
"Wolverhampton City Council","http://opendatacommunities.org/id/metropolitan-district-council/wolverhampton","London Northwestern Ra",106.7,"Court Team","4112","Public Transport","09/03/2020"
"Wolverhampton City Council","http://opendatacommunities.org/id/metropolitan-district-council/wolverhampton","JAMES LISTER & SONS LT",60,"Street Lighting Maintenance","5085","Materials","09/03/2020"
"Wolverhampton City Council","http://opendatacommunities.org/id/metropolitan-district-council/wolverhampton","AMZNMKTPLACE AMAZON.CO",27.75,"EIP Locality 7","5999","Grant Payments","09/03/2020"
"Wolverhampton City Council","http://opendatacommunities.org/id/metropolitan-district-council/wolverhampton","AMZNMKTPLACE AMAZON.CO",28.7,"EIP Locality 7","5999","Grant Payments","09/03/2020"
"Wolverhampton City Council","http://opendatacommunities.org/id/metropolitan-district-council/wolverhampton","Avanti West Coast",72.7,"Risk Management & Insurance","4112","Public Transport","09/03/2020"
"Wolverhampton City Council","http://opendatacommunities.org/id/metropolitan-district-council/wolverhampton","WILKO RETAIL LIMITED",2.5,"Adult Services - East","5399","Cleaning Supplies and Materials","09/03/2020"
"Wolverhampton City Council","http://opendatacommunities.org/id/metropolitan-district-council/wolverhampton","OAKLAND",686,"Destitute Plus","7011","Accommodation Costs","09/03/2020"
"Wolverhampton City Council","http://opendatacommunities.org/id/metropolitan-district-council/wolverhampton","SUBWAY",3.82,"Youth Offending Team","5814","Catering","09/03/2020"
"Wolverhampton City Council","http://opendatacommunities.org/id/metropolitan-district-council/wolverhampton","AMZNMktplace",19.97,"Safeguarding Admin Resource","5999","R4000","09/03/2020"
"Wolverhampton City Council","http://opendatacommunities.org/id/metropolitan-district-council/wolverhampton","Avanti West Coast",137.1,"Regional Adoption Agency","4112","Public Transport","09/03/2020"
"Wolverhampton City Council","http://opendatacommunities.org/id/metropolitan-district-council/wolverhampton","PREMIER INN",209.5,"Regional Adoption Agency","3811","Accommodation Costs","09/03/2020"
"Wolverhampton City Council","http://opendatacommunities.org/id/metropolitan-district-council/wolverhampton","PREMIER INN",335,"Regional Adoption Agency","3811","Accommodation Costs","09/03/2020"
"Wolverhampton City Council","http://opendatacommunities.org/id/metropolitan-district-council/wolverhampton","PREMIER INN",72.5,"Regional Adoption Agency","3811","Accommodation Costs","09/03/2020"
"Wolverhampton City Council","http://opendatacommunities.org/id/metropolitan-district-council/wolverhampton","Avanti West Coast",106.7,"Regional Adoption Agency","4112","-","09/03/2020"
"Wolverhampton City Council","http://opendatacommunities.org/id/metropolitan-district-council/wolverhampton","AMZNMktplace",8.7,"Regional Adoption Agency","5999","Stationery","09/03/2020"
"Wolverhampton City Council","http://opendatacommunities.org/id/metropolitan-district-council/wolverhampton","AMZNMktplace",1.57,"Regional Adoption Agency","5999","Materials","09/03/2020"
"Wolverhampton City Council","http://opendatacommunities.org/id/metropolitan-district-council/wolverhampton","AMZNMktplace",13.9,"Regional Adoption Agency","5999","Materials","09/03/2020"
"Wolverhampton City Council","http://opendatacommunities.org/id/metropolitan-district-council/wolverhampton","AMZNMktplace",1.73,"Regional Adoption Agency","5999","Stationery","09/03/2020"
"Wolverhampton City Council","http://opendatacommunities.org/id/metropolitan-district-council/wolverhampton","POST OFFICE COUNTER",380,"Fostering Team & Allowances","9402","R4009","09/03/2020"
"Wolverhampton City Council","http://opendatacommunities.org/id/metropolitan-district-council/wolverhampton","POST OFFICE COUNTER",140,"Fostering Team & Allowances","9402","R4009","09/03/2020"
"Wolverhampton City Council","http://opendatacommunities.org/id/metropolitan-district-council/wolverhampton","WP-CENTRAL TAXIS L",461.46,"Fostering Team & Allowances","4121","Client Transport","09/03/2020"
"Wolverhampton City Council","http://opendatacommunities.org/id/metropolitan-district-council/wolverhampton","thetrainline.com",208.08,"Fostering Team","4112","Public Transport","09/03/2020"
"Wolverhampton City Council","http://opendatacommunities.org/id/metropolitan-district-council/wolverhampton","AMZNMKTPLACE AMAZON.CO",12.16,"Aldersley Leisure Village","5999","Equipment - Purchase","09/03/2020"
"Wolverhampton City Council","http://opendatacommunities.org/id/metropolitan-district-council/wolverhampton","ASDA PETROL 4949",61.87,"Mayoral Expenses","5542","Petrol","09/03/2020"
"Wolverhampton City Council","http://opendatacommunities.org/id/metropolitan-district-council/wolverhampton","Trainline",45.08,"Lac Transitions","4112","Public Transport","09/03/2020"
"Wolverhampton City Council","http://opendatacommunities.org/id/metropolitan-district-council/wolverhampton","WP-CENTRAL TAXIS L",321,"Lac Transitions","4121","Public Transport","09/03/2020"
"Wolverhampton City Council","http://opendatacommunities.org/id/metropolitan-district-council/wolverhampton","POUNDLAND LTD 1463",225,"COVID 19 Activity","5310","Cleaning Supplies and Materials","09/03/2020"
"Wolverhampton City Council","http://opendatacommunities.org/id/metropolitan-district-council/wolverhampton","Avanti West Coast",14.2,"LAC Team","4112","Client Transport","09/03/2020"
"Wolverhampton City Council","http://opendatacommunities.org/id/metropolitan-district-council/wolverhampton","APPLE.COM/BILL",0.79,"Managing Director","5735","Computing - Purchase of Software","09/03/2020"
"Wolverhampton City Council","http://opendatacommunities.org/id/metropolitan-district-council/wolverhampton","Trainline",167.58,"Delivery & OCE Development","4112","Public Transport","09/03/2020"
"Wolverhampton City Council","http://opendatacommunities.org/id/metropolitan-district-council/wolverhampton","AMZNMKTPLACE AMAZON.CO",42.43,"Upper Pendeford Farm Childrens Home","5999","Provisions (Not for resale)","09/03/2020"
"Wolverhampton City Council","http://opendatacommunities.org/id/metropolitan-district-council/wolverhampton","BCC REGISTER OFFIC",14,"Looked After Team 2","9399","Financial Assistance In Exceptional Circ","09/03/2020"
"Wolverhampton City Council","http://opendatacommunities.org/id/metropolitan-district-council/wolverhampton","SCREWFIX DIRECT",18.63,"Business Support Services","5200","R4000","09/03/2020"
"Wolverhampton City Council","http://opendatacommunities.org/id/metropolitan-district-council/wolverhampton","NSPCC",-35,"AES Staff Development","8299","Training Expenses","09/03/2020"
"Wolverhampton City Council","http://opendatacommunities.org/id/metropolitan-district-council/wolverhampton","PAYPAL  CIATRAINING",540,"Educational Studies Delivery Area","5942","Computing - Purchase of Software","09/03/2020"
"Wolverhampton City Council","http://opendatacommunities.org/id/metropolitan-district-council/wolverhampton","SAINSBURYS (2340)",37.77,"Creative Studies Delivery Area","5411","Provisions (Not for resale)","09/03/2020"
"Wolverhampton City Council","http://opendatacommunities.org/id/metropolitan-district-council/wolverhampton","Trainline",68.68,"LAC Transitions Team","4112","Public Transport","09/03/2020"
"Wolverhampton City Council","http://opendatacommunities.org/id/metropolitan-district-council/wolverhampton","Trainline",56.88,"LAC Transitions Team","4112","Public Transport","09/03/2020"
"Wolverhampton City Council","http://opendatacommunities.org/id/metropolitan-district-council/wolverhampton","WAITROSE 696",3.75,"Vulnerable Young Persons Team","5411","Equipment - Health and Safety","09/03/2020"
"Wolverhampton City Council","http://opendatacommunities.org/id/metropolitan-district-council/wolverhampton","LIDL GB",2.75,"Vulnerable Young Persons Team","5411","Equipment - Health and Safety","09/03/2020"
"Wolverhampton City Council","http://opendatacommunities.org/id/metropolitan-district-council/wolverhampton","TYLERS GAS AND ELECTRI",231.67,"Learning Disabilities Management","5732","R4000","09/03/2020"
"Wolverhampton City Council","http://opendatacommunities.org/id/metropolitan-district-council/wolverhampton","Wix.com",46.57,"Technical Support","5817","Computing - Purchase of Software","09/03/2020"
"Wolverhampton City Council","http://opendatacommunities.org/id/metropolitan-district-council/wolverhampton","WIX.COM",46.57,"Technical Support","5968","Computing - Purchase of Software","09/03/2020"
"Wolverhampton City Council","http://opendatacommunities.org/id/metropolitan-district-council/wolverhampton","WIX.COM",46.57,"Technical Support","5968","Computing - Purchase of Software","09/03/2020"
"Wolverhampton City Council","http://opendatacommunities.org/id/metropolitan-district-council/wolverhampton","THE GEORGE HOTEL",55,"LAC Team","7011","Services - Supplies & Services to users","09/03/2020"
"Wolverhampton City Council","http://opendatacommunities.org/id/metropolitan-district-council/wolverhampton","HERON FOODS LTD",32.5,"Ernest Bold Court","5499","Provisions (Not for resale)","09/03/2020"
"Wolverhampton City Council","http://opendatacommunities.org/id/metropolitan-district-council/wolverhampton","ASDA GROCERIES ONLINE",-0.99,"Ernest Bold Court","5411","Provisions (Not for resale)","09/03/2020"
"Wolverhampton City Council","http://opendatacommunities.org/id/metropolitan-district-council/wolverhampton","ASDA GROCERIES ONLINE",51.72,"Ernest Bold Court","5411","Provisions (Not for resale)","09/03/2020"
"Wolverhampton City Council","http://opendatacommunities.org/id/metropolitan-district-council/wolverhampton","ASDA GROCERIES ONLINE",246.33,"Duke Street Bungalows","5411","Provisions (Not for resale)","09/03/2020"
"Wolverhampton City Council","http://opendatacommunities.org/id/metropolitan-district-council/wolverhampton","WWW.SWIMMING.ORG",56.67,"Workforce Development","8699","Training Expenses","09/03/2020"
"Wolverhampton City Council","http://opendatacommunities.org/id/metropolitan-district-council/wolverhampton","WWW.SWIMMING.ORG",249.17,"Workforce Development","8699","Training Expenses","09/03/2020"
"Wolverhampton City Council","http://opendatacommunities.org/id/metropolitan-district-council/wolverhampton","AMZNMKTPLACE AMAZON.CO",12,"Fleet Management","5999","Materials","09/03/2020"
"Wolverhampton City Council","http://opendatacommunities.org/id/metropolitan-district-council/wolverhampton","AMZNMKTPLACE AMAZON.CO",24.79,"Community Enablement","5999","-","09/03/2020"
"Wolverhampton City Council","http://opendatacommunities.org/id/metropolitan-district-council/wolverhampton","AMZNMKTPLACE AMAZON.CO",40.77,"Community Enablement","5999","-","09/03/2020"
"Wolverhampton City Council","http://opendatacommunities.org/id/metropolitan-district-council/wolverhampton","AMZNMktplace",263.21,"Music Support Team","5999","Equipment - Health and Safety","09/03/2020"
"Wolverhampton City Council","http://opendatacommunities.org/id/metropolitan-district-council/wolverhampton","ROYAL BK OF SCOTLAND",200,"Duke Street Bungalows","6011","Provisions (Not for resale)","09/03/2020"
"Wolverhampton City Council","http://opendatacommunities.org/id/metropolitan-district-council/wolverhampton","REDWINGS LODGE",93.33,"EIP Locality 5","7011","Grant Payments","09/03/2020"
"Wolverhampton City Council","http://opendatacommunities.org/id/metropolitan-district-council/wolverhampton","REDWINGS LODGE",30.83,"EIP Locality 5","7011","Grant Payments","09/03/2020"
"Wolverhampton City Council","http://opendatacommunities.org/id/metropolitan-district-council/wolverhampton","AMZNMKTPLACE AMAZON.CO",14.2,"EIP Locality 7","5999","Grant Payments","09/03/2020"
"Wolverhampton City Council","http://opendatacommunities.org/id/metropolitan-district-council/wolverhampton","AMZNMKTPLACE AMAZON.CO",21.7,"EIP Locality 7","5999","Grant Payments","09/03/2020"
"Wolverhampton City Council","http://opendatacommunities.org/id/metropolitan-district-council/wolverhampton","AMZNMKTPLACE AMAZON.CO",19.9,"EIP Locality 7","5999","Grant Payments","09/03/2020"
"Wolverhampton City Council","http://opendatacommunities.org/id/metropolitan-district-council/wolverhampton","HSBC CASH MACHINE",60,"Audience Development","6011","Equipment - Purchase","06/03/2020"
"Wolverhampton City Council","http://opendatacommunities.org/id/metropolitan-district-council/wolverhampton","SCREWFIX DIR. LTD",44.99,"Statutory Services (10RM)","5211","Protective Clothing","06/03/2020"
"Wolverhampton City Council","http://opendatacommunities.org/id/metropolitan-district-council/wolverhampton","WCC MOTO PAYMENTS",10,"Specialist Support Service - North","9399","Equipment - Purchase","06/03/2020"
"Wolverhampton City Council","http://opendatacommunities.org/id/metropolitan-district-council/wolverhampton","WCC MOTO PAYMENTS",10,"Specialist Support Service - North","9399","Equipment - Purchase","06/03/2020"
"Wolverhampton City Council","http://opendatacommunities.org/id/metropolitan-district-council/wolverhampton","WCC MOTO PAYMENTS",10,"Specialist Support Service - North","9399","Equipment - Purchase","06/03/2020"
"Wolverhampton City Council","http://opendatacommunities.org/id/metropolitan-district-council/wolverhampton","WCC MOTO PAYMENTS",10,"Specialist Support Service - North","9399","Equipment - Purchase","06/03/2020"
"Wolverhampton City Council","http://opendatacommunities.org/id/metropolitan-district-council/wolverhampton","SCAN COMPUTERS INT LTD",224.14,"Strategic ICTS (ICT Serv Budget)","5732","Computing - Consumables","06/03/2020"
"Wolverhampton City Council","http://opendatacommunities.org/id/metropolitan-district-council/wolverhampton","NATWEST BANK",200,"NRPF","6011","No Recourse to Public Funds","06/03/2020"
"Wolverhampton City Council","http://opendatacommunities.org/id/metropolitan-district-council/wolverhampton","TESCO STORES 5397",5.05,"Street Lighting Maintenance","5411","Materials","06/03/2020"
"Wolverhampton City Council","http://opendatacommunities.org/id/metropolitan-district-council/wolverhampton","CardtronicsUK",200,"Key to Inspiration","6011","Clothing / Uniforms","06/03/2020"
"Wolverhampton City Council","http://opendatacommunities.org/id/metropolitan-district-council/wolverhampton","AMZNMKTPLACE AMAZON.CO",86.6,"Key to Inspiration","5999","Equipment - Purchase","06/03/2020"
"Wolverhampton City Council","http://opendatacommunities.org/id/metropolitan-district-council/wolverhampton","WHITEMORE REANS LTD",5,"LAC Transitions Accommodation","5251","Accommodation Costs","06/03/2020"
"Wolverhampton City Council","http://opendatacommunities.org/id/metropolitan-district-council/wolverhampton","thetrainline.com",26.2,"Safeguarding Admin Resource","4112","R3300","06/03/2020"
"Wolverhampton City Council","http://opendatacommunities.org/id/metropolitan-district-council/wolverhampton","AMZNMKTPLACE AMAZON.CO",16.74,"Regional Adoption Agency","5999","Computing - Consumables","06/03/2020"
"Wolverhampton City Council","http://opendatacommunities.org/id/metropolitan-district-council/wolverhampton","WWW.ICO.ORG.UK",40,"Register Office","9399","-","06/03/2020"
"Wolverhampton City Council","http://opendatacommunities.org/id/metropolitan-district-council/wolverhampton","WELCOME BREAK",9.79,"Mayoral Expenses","5499","Subsistence","06/03/2020"
"Wolverhampton City Council","http://opendatacommunities.org/id/metropolitan-district-council/wolverhampton","WWW.WMCA.ORG.UK",34.5,"Pupil Premium","4111","Public Transport","06/03/2020"
"Wolverhampton City Council","http://opendatacommunities.org/id/metropolitan-district-council/wolverhampton","Trainline",109.89,"Corporate Parenting","4112","Public Transport","06/03/2020"
"Wolverhampton City Council","http://opendatacommunities.org/id/metropolitan-district-council/wolverhampton","thetrainline.com",80.08,"Lac Transitions","4112","Public Transport","06/03/2020"
"Wolverhampton City Council","http://opendatacommunities.org/id/metropolitan-district-council/wolverhampton","AMZNMktplace",36.18,"SWP � Cohesion Activities","5999","Equipment - Purchase","06/03/2020"
"Wolverhampton City Council","http://opendatacommunities.org/id/metropolitan-district-council/wolverhampton","AMZNMktplace",63.32,"SWP � Cohesion Activities","5999","Equipment - Purchase","06/03/2020"
"Wolverhampton City Council","http://opendatacommunities.org/id/metropolitan-district-council/wolverhampton","Trainline",47.26,"Healthy Ageing","4112","Public Transport","06/03/2020"
"Wolverhampton City Council","http://opendatacommunities.org/id/metropolitan-district-council/wolverhampton","thetrainline.com",15.21,"Service Director Adults","4112","R3300","06/03/2020"
"Wolverhampton City Council","http://opendatacommunities.org/id/metropolitan-district-council/wolverhampton","AMZNMktplace",22.35,"Community Pathways","5999","Cleaning Supplies and Materials","06/03/2020"
"Wolverhampton City Council","http://opendatacommunities.org/id/metropolitan-district-council/wolverhampton","AMZNMKTPLACE AMAZON.CO",4.62,"Learning Disabilities Management","5999","R4000","06/03/2020"
"Wolverhampton City Council","http://opendatacommunities.org/id/metropolitan-district-council/wolverhampton","123 REG LTD",9.99,"Technical Support","4816","Computing - Purchase of Software","06/03/2020"
"Wolverhampton City Council","http://opendatacommunities.org/id/metropolitan-district-council/wolverhampton","AMZNMktplace",103.78,"Environmental Crime and Consumer Protect","5999","R4000","06/03/2020"
"Wolverhampton City Council","http://opendatacommunities.org/id/metropolitan-district-council/wolverhampton","NATIONAL MARKET TRADER",275,"Wolverhampton Indoor and Open Market","8699","Training Expenses","06/03/2020"
"Wolverhampton City Council","http://opendatacommunities.org/id/metropolitan-district-council/wolverhampton","Trainline",13.69,"Food and Health & Safety","4112","Services - Fees and Charges","06/03/2020"
"Wolverhampton City Council","http://opendatacommunities.org/id/metropolitan-district-council/wolverhampton","WOLVES FC",120,"Wolverhampton Indoor and Open Market","7997","Training Expenses","06/03/2020"
"Wolverhampton City Council","http://opendatacommunities.org/id/metropolitan-district-council/wolverhampton","THEATRE SEVERN",55,"Workforce Development","7832","Training Expenses","06/03/2020"
"Wolverhampton City Council","http://opendatacommunities.org/id/metropolitan-district-council/wolverhampton","Amazon.co.uk TT7K15R95",225.25,"Welfare Rights","5969","Publications","06/03/2020"
"Wolverhampton City Council","http://opendatacommunities.org/id/metropolitan-district-council/wolverhampton","CO OP GROUP FOOD",2.5,"Children & Family Contact Services","5411","Cleaning Supplies and Materials","06/03/2020"
"Wolverhampton City Council","http://opendatacommunities.org/id/metropolitan-district-council/wolverhampton","LIDL GB  DUDLEY",17.37,"Children & Family Contact Services","5411","Cleaning Supplies and Materials","06/03/2020"
"Wolverhampton City Council","http://opendatacommunities.org/id/metropolitan-district-council/wolverhampton","ALDI STORES LTD",5.82,"COVID 19 - Personal Protective equipment","5411","Materials","06/03/2020"
"Wolverhampton City Council","http://opendatacommunities.org/id/metropolitan-district-council/wolverhampton","WM MORRISONS STORE",39.2,"Community Enablement","5411","-","06/03/2020"
"Wolverhampton City Council","http://opendatacommunities.org/id/metropolitan-district-council/wolverhampton","REDWINGS LODGE",37.5,"EIP Locality 5","7011","Grant Payments","06/03/2020"
"Wolverhampton City Council","http://opendatacommunities.org/id/metropolitan-district-council/wolverhampton","WWW.THEWORKS.CO.UK",30,"EIP Locality 7","5310","Grant Payments","06/03/2020"
"Wolverhampton City Council","http://opendatacommunities.org/id/metropolitan-district-council/wolverhampton","Amazon.co.uk YD4RT27U5",11.15,"Phoebe Cummings - ACE NPO WAG","5969","Materials","06/03/2020"
"Wolverhampton City Council","http://opendatacommunities.org/id/metropolitan-district-council/wolverhampton","BELLA_ITALIA_GIFTCRD",33.33,"Power2 Team","6540","Educ Trips, Holidays, Outings, Activity","06/03/2020"
"Wolverhampton City Council","http://opendatacommunities.org/id/metropolitan-district-council/wolverhampton","WM MORRISONS STORE",32,"Bradley Resource Centre","5411","Provisions (Not for resale)","06/03/2020"
"Wolverhampton City Council","http://opendatacommunities.org/id/metropolitan-district-council/wolverhampton","HM PASSPORT OFFICE",85,"Lac Transitions","9399","Services - Supplies & Services to users","06/03/2020"
"Wolverhampton City Council","http://opendatacommunities.org/id/metropolitan-district-council/wolverhampton","PREMIER INN",75.99,"Private Hire Vehicles","3811","Accommodation Costs","06/03/2020"
"Wolverhampton City Council","http://opendatacommunities.org/id/metropolitan-district-council/wolverhampton","AMZNMktplace",44.25,"Audience Development","5999","R4317","06/03/2020"
"Wolverhampton City Council","http://opendatacommunities.org/id/metropolitan-district-council/wolverhampton","AMZNMktplace",17.47,"Audience Development","5999","R4317","06/03/2020"
"Wolverhampton City Council","http://opendatacommunities.org/id/metropolitan-district-council/wolverhampton","AMZNMktplace",74.11,"Audience Development","5999","R4317","06/03/2020"
"Wolverhampton City Council","http://opendatacommunities.org/id/metropolitan-district-council/wolverhampton","AMZNMktplace",39.99,"WV Active Marketing","5999","R4317","06/03/2020"
"Wolverhampton City Council","http://opendatacommunities.org/id/metropolitan-district-council/wolverhampton","BODYCARE",6.3,"COVID 19 Activity","5977","Cleaning Supplies and Materials","05/03/2020"
"Wolverhampton City Council","http://opendatacommunities.org/id/metropolitan-district-council/wolverhampton","STREETGAMES",220,"Healthy Life Expectancy","5734","Conference Expenses","05/03/2020"
"Wolverhampton City Council","http://opendatacommunities.org/id/metropolitan-district-council/wolverhampton","AMZNMKTPLACE AMAZON.CO",15.96,"SWP � Cohesion Activities","5999","Equipment - Purchase","05/03/2020"
"Wolverhampton City Council","http://opendatacommunities.org/id/metropolitan-district-council/wolverhampton","WP-CENTRAL TAXIS L",370,"LAC Team","4121","Client Transport","05/03/2020"
"Wolverhampton City Council","http://opendatacommunities.org/id/metropolitan-district-council/wolverhampton","ASDA GROCERIES ONLINE",-4.81,"Upper Pendeford Farm Childrens Home","5411","Provisions (Not for resale)","05/03/2020"
"Wolverhampton City Council","http://opendatacommunities.org/id/metropolitan-district-council/wolverhampton","ASDA GROCERIES ONLINE",187.59,"Upper Pendeford Farm Childrens Home","5411","Provisions (Not for resale)","05/03/2020"
"Wolverhampton City Council","http://opendatacommunities.org/id/metropolitan-district-council/wolverhampton","REDWINGS LODGE",45,"EIP Locality 5","7011","Grant Payments","05/03/2020"
"Wolverhampton City Council","http://opendatacommunities.org/id/metropolitan-district-council/wolverhampton","WM MORRISONS STORE",26,"Creative Studies Delivery Area","5411","Materials","05/03/2020"
"Wolverhampton City Council","http://opendatacommunities.org/id/metropolitan-district-council/wolverhampton","ARGOS WOLVERHAMPTO",-166.65,"Art Gallery","5310","Fixtures and Fittings - Purchases","05/03/2020"
"Wolverhampton City Council","http://opendatacommunities.org/id/metropolitan-district-council/wolverhampton","ARGOS LTD",303.91,"Art Gallery","5310","-","05/03/2020"
"Wolverhampton City Council","http://opendatacommunities.org/id/metropolitan-district-council/wolverhampton","B&M RETAIL",28.31,"LAC Transitions Accommodation","5310","Client Allowances","05/03/2020"
"Wolverhampton City Council","http://opendatacommunities.org/id/metropolitan-district-council/wolverhampton","ARGOS WOLVERHAMPTO",116.66,"LAC Transitions Accommodation","5310","Client Allowances","05/03/2020"
"Wolverhampton City Council","http://opendatacommunities.org/id/metropolitan-district-council/wolverhampton","HOME BARGAINS",7.22,"LAC Transitions Accommodation","5251","Client Allowances","05/03/2020"
"Wolverhampton City Council","http://opendatacommunities.org/id/metropolitan-district-council/wolverhampton","DVLA DRIVER ONLINE",34,"LAC Transitions Team","9399","Financial Assistance In Exceptional Circ","05/03/2020"
"Wolverhampton City Council","http://opendatacommunities.org/id/metropolitan-district-council/wolverhampton","Amazon.co.uk 4J7UI7BP5",15.82,"Learning Disabilities Management","5969","R4000","05/03/2020"
"Wolverhampton City Council","http://opendatacommunities.org/id/metropolitan-district-council/wolverhampton","1 AND 1 IONOS LTD",55.82,"Learning Technologies","4816","Computing - Purchase of Software","05/03/2020"
"Wolverhampton City Council","http://opendatacommunities.org/id/metropolitan-district-council/wolverhampton","WP-CENTRAL TAXIS L",114,"LAC Team","4121","Financial Assistance In Exceptional Circ","05/03/2020"
"Wolverhampton City Council","http://opendatacommunities.org/id/metropolitan-district-council/wolverhampton","SAINSBURYS (2340)",5.75,"Civic Centre Catering","5411","Catering","05/03/2020"
"Wolverhampton City Council","http://opendatacommunities.org/id/metropolitan-district-council/wolverhampton","WWW.SWIMMING.ORG",68,"Workforce Development","8699","Training Expenses","05/03/2020"
"Wolverhampton City Council","http://opendatacommunities.org/id/metropolitan-district-council/wolverhampton","NCS VUE CITB HS&E REV",54,"Workforce Development","8299","Training Expenses","05/03/2020"
"Wolverhampton City Council","http://opendatacommunities.org/id/metropolitan-district-council/wolverhampton","THE BIKEABILITY TRUST",1283.3,"Cycling Schemes - Bikeability","5111","R4000","05/03/2020"
"Wolverhampton City Council","http://opendatacommunities.org/id/metropolitan-district-council/wolverhampton","WM MORRISONS STORE",24.3,"Community Enablement","5411","Cleaning Supplies and Materials","05/03/2020"
"Wolverhampton City Council","http://opendatacommunities.org/id/metropolitan-district-council/wolverhampton","RED HOUSE BOARDING KEN",99.8,"Mental Health Assessment & Care Mgmt","5995","Accommodation Costs","05/03/2020"
"Wolverhampton City Council","http://opendatacommunities.org/id/metropolitan-district-council/wolverhampton","QUEENSWAY INTERIOR",145,"Mental Health Assessment & Care Mgmt","5712","Furniture","05/03/2020"
"Wolverhampton City Council","http://opendatacommunities.org/id/metropolitan-district-council/wolverhampton","NX Bus Contactless",4,"Art Gallery","4131","Training Expenses","05/03/2020"
"Wolverhampton City Council","http://opendatacommunities.org/id/metropolitan-district-council/wolverhampton","HIGHSPEEDTRAINING.CO.U",100,"Power2 Team","8244","Training Expenses","05/03/2020"
"Wolverhampton City Council","http://opendatacommunities.org/id/metropolitan-district-council/wolverhampton","HM PASSPORT OFFICE",75.5,"Lac Transitions","9399","Services - Supplies & Services to users","05/03/2020"
"Wolverhampton City Council","http://opendatacommunities.org/id/metropolitan-district-council/wolverhampton","HALX WOLVERHAMPTON CIT",200,"Private Hire Vehicles","6011","Services - Bank Charges","05/03/2020"
"Wolverhampton City Council","http://opendatacommunities.org/id/metropolitan-district-council/wolverhampton","MEDIASTOREHSE.CO.K",37.45,"WV Active Marketing","7338","R4317","05/03/2020"
"Wolverhampton City Council","http://opendatacommunities.org/id/metropolitan-district-council/wolverhampton","ASDA GROCERIES ONLINE",-13.5,"Bradley Resource Centre","5411","Provisions (Not for resale)","05/03/2020"
"Wolverhampton City Council","http://opendatacommunities.org/id/metropolitan-district-council/wolverhampton","ASDA GROCERIES ONLINE",171.34,"Bradley Resource Centre","5411","Provisions (Not for resale)","05/03/2020"
"Wolverhampton City Council","http://opendatacommunities.org/id/metropolitan-district-council/wolverhampton","CLINICAL PRINT FINISHE",224.48,"Document Centre - General","5111","Materials","05/03/2020"
"Wolverhampton City Council","http://opendatacommunities.org/id/metropolitan-district-council/wolverhampton","B&M RETAIL",61.14,"LAC Transitions Team","5310","-","05/03/2020"
"Wolverhampton City Council","http://opendatacommunities.org/id/metropolitan-district-council/wolverhampton","ARGOS LTD",251.91,"LAC Transitions Team","5310","-","05/03/2020"
"Wolverhampton City Council","http://opendatacommunities.org/id/metropolitan-district-council/wolverhampton","ARGOS LTD",133.72,"LAC Transitions Team","5310","Client Allowances","05/03/2020"
"Wolverhampton City Council","http://opendatacommunities.org/id/metropolitan-district-council/wolverhampton","AMZNMktplace",96.22,"Key to Inspiration","5999","Equipment - Purchase","05/03/2020"
"Wolverhampton City Council","http://opendatacommunities.org/id/metropolitan-district-council/wolverhampton","WEST MIDLANDS TRAV",67,"SEN Special Education Admin","4131","R3300","05/03/2020"
"Wolverhampton City Council","http://opendatacommunities.org/id/metropolitan-district-council/wolverhampton","SPORTSDIRECT 231",44.97,"Youth Offending Team","5941","R4000","05/03/2020"
"Wolverhampton City Council","http://opendatacommunities.org/id/metropolitan-district-council/wolverhampton","BEATSABAR MUSIC PROJEC",253.28,"Youth Offending Team","5733","Educ Trips, Holidays, Outings, Activity","05/03/2020"
"Wolverhampton City Council","http://opendatacommunities.org/id/metropolitan-district-council/wolverhampton","TESCO STORES 6727",4,"Youth Offending Team","5411","Catering","05/03/2020"
"Wolverhampton City Council","http://opendatacommunities.org/id/metropolitan-district-council/wolverhampton","BRITANNIA",73,"NRPF","7011","No Recourse to Public Funds","05/03/2020"
"Wolverhampton City Council","http://opendatacommunities.org/id/metropolitan-district-council/wolverhampton","POST OFFICE COUNTER",1.88,"LAC Transitions Team","9402","Client Allowances","05/03/2020"
"Wolverhampton City Council","http://opendatacommunities.org/id/metropolitan-district-council/wolverhampton","AMZN MKTP UK W84HA7XW5",7.49,"Regional Adoption Agency","5942","Stationery","05/03/2020"
"Wolverhampton City Council","http://opendatacommunities.org/id/metropolitan-district-council/wolverhampton","PREMIER INN",100,"Regional Adoption Agency","3811","Accommodation Costs","05/03/2020"
"Wolverhampton City Council","http://opendatacommunities.org/id/metropolitan-district-council/wolverhampton","Amazon.co.uk SZ3OD7FW5",2.15,"Regional Adoption Agency","5969","Materials","05/03/2020"
"Wolverhampton City Council","http://opendatacommunities.org/id/metropolitan-district-council/wolverhampton","AMZNMktplace",63.32,"SWP � Cohesion Activities","5999","Equipment - Purchase","05/03/2020"
"Wolverhampton City Council","http://opendatacommunities.org/id/metropolitan-district-council/wolverhampton","POUNDLAND LTD 1463",27.1,"COVID 19 Activity","5310","Cleaning Supplies and Materials","05/03/2020"
"Wolverhampton City Council","http://opendatacommunities.org/id/metropolitan-district-council/wolverhampton","HOTEL MERCURE",136,"Healthy Life Expectancy","3579","Educ Trips, Holidays, Outings, Activity","05/03/2020"
"Wolverhampton City Council","http://opendatacommunities.org/id/metropolitan-district-council/wolverhampton","thetrainline.com",6.77,"Fostering Team & Allowances","4112","Public Transport","04/03/2020"
"Wolverhampton City Council","http://opendatacommunities.org/id/metropolitan-district-council/wolverhampton","thetrainline.com",25.79,"Pupil Premium","4112","Public Transport","04/03/2020"
"Wolverhampton City Council","http://opendatacommunities.org/id/metropolitan-district-council/wolverhampton","POUNDLAND LTD 1463",7,"Youth Offending Team","5310","Equipment - Health and Safety","04/03/2020"
"Wolverhampton City Council","http://opendatacommunities.org/id/metropolitan-district-council/wolverhampton","SCREWFIX DIR LTD",24.98,"Cemeteries","5211","Cleaning Supplies and Materials","04/03/2020"
"Wolverhampton City Council","http://opendatacommunities.org/id/metropolitan-district-council/wolverhampton","HOME BARGAINS WOLVERHA",42.31,"Cemeteries","5251","Cleaning Supplies and Materials","04/03/2020"
"Wolverhampton City Council","http://opendatacommunities.org/id/metropolitan-district-council/wolverhampton","POUNDLAND LTD 1463",15,"COVID 19 Activity","5310","Cleaning Supplies and Materials","04/03/2020"
"Wolverhampton City Council","http://opendatacommunities.org/id/metropolitan-district-council/wolverhampton","AMZNMktplace",14.4,"SWP � Cohesion Activities","5999","R4000","04/03/2020"
"Wolverhampton City Council","http://opendatacommunities.org/id/metropolitan-district-council/wolverhampton","AMZNMktplace",4.88,"SWP � Cohesion Activities","5999","R4400","04/03/2020"
"Wolverhampton City Council","http://opendatacommunities.org/id/metropolitan-district-council/wolverhampton","AMZNMktplace",13.67,"Upper Pendeford Farm Childrens Home","5999","Provisions (Not for resale)","04/03/2020"
"Wolverhampton City Council","http://opendatacommunities.org/id/metropolitan-district-council/wolverhampton","POST OFFICE COUNTER",8.7,"LAC Team","9402","Comms - Postage","04/03/2020"
"Wolverhampton City Council","http://opendatacommunities.org/id/metropolitan-district-council/wolverhampton","REDWINGS LODGE",45,"EIP Locality 5","7011","Grant Payments","04/03/2020"
"Wolverhampton City Council","http://opendatacommunities.org/id/metropolitan-district-council/wolverhampton","PAYPAL  CIATRAINING",235,"Central Costs","5942","Books","04/03/2020"
"Wolverhampton City Council","http://opendatacommunities.org/id/metropolitan-district-council/wolverhampton","HUGHES",424,"LAC Transitions Accommodation","5732","Client Allowances","04/03/2020"
"Wolverhampton City Council","http://opendatacommunities.org/id/metropolitan-district-council/wolverhampton","HUGHES",422.5,"LAC Transitions Accommodation","5732","Client Allowances","04/03/2020"
"Wolverhampton City Council","http://opendatacommunities.org/id/metropolitan-district-council/wolverhampton","WOLVERHAMPTON CC",2.5,"Condition Surveys","7523","Parking Fees","04/03/2020"
"Wolverhampton City Council","http://opendatacommunities.org/id/metropolitan-district-council/wolverhampton","WALSALL COUNCIL",-17,"LAC Team","9399","Financial Assistance In Exceptional Circ","04/03/2020"
"Wolverhampton City Council","http://opendatacommunities.org/id/metropolitan-district-council/wolverhampton","WALSALL COUNCIL",17,"LAC Team","9399","Financial Assistance In Exceptional Circ","04/03/2020"
"Wolverhampton City Council","http://opendatacommunities.org/id/metropolitan-district-council/wolverhampton","ASDA GROCERIES ONLINE",-0.16,"Ernest Bold Court","5411","Provisions (Not for resale)","04/03/2020"
"Wolverhampton City Council","http://opendatacommunities.org/id/metropolitan-district-council/wolverhampton","ASDA GROCERIES ONLINE",65.19,"Ernest Bold Court","5411","Provisions (Not for resale)","04/03/2020"
"Wolverhampton City Council","http://opendatacommunities.org/id/metropolitan-district-council/wolverhampton","Trainline",144.79,"Head of Service - CINCP","4112","Public Transport","04/03/2020"
"Wolverhampton City Council","http://opendatacommunities.org/id/metropolitan-district-council/wolverhampton","ENJOY WOLVERHAMPTON",175,"Commercial Waste Collection","5399","R4000","04/03/2020"
"Wolverhampton City Council","http://opendatacommunities.org/id/metropolitan-district-council/wolverhampton","WWW.CIPFA.ORG.UK/PFMCO",79,"Workforce Development","8699","Training Expenses","04/03/2020"
"Wolverhampton City Council","http://opendatacommunities.org/id/metropolitan-district-council/wolverhampton","WWW.FTA.CO.UK",210,"Fleet Management","8999","Materials","04/03/2020"
"Wolverhampton City Council","http://opendatacommunities.org/id/metropolitan-district-council/wolverhampton","HOME BARGAINS",9.95,"Inclusion Support","5251","Equipment - Health and Safety","04/03/2020"
"Wolverhampton City Council","http://opendatacommunities.org/id/metropolitan-district-council/wolverhampton","HOME BARGAINS",9.95,"Inclusion Support","5251","Equipment - Health and Safety","04/03/2020"
"Wolverhampton City Council","http://opendatacommunities.org/id/metropolitan-district-council/wolverhampton","WWW.MOTOR.ORG.UK",60,"Workforce Development","5999","Training Expenses","04/03/2020"
"Wolverhampton City Council","http://opendatacommunities.org/id/metropolitan-district-council/wolverhampton","B&M 333 - AN BENTLEY B",17.46,"Community Enablement","5399","Cleaning Supplies and Materials","04/03/2020"
"Wolverhampton City Council","http://opendatacommunities.org/id/metropolitan-district-council/wolverhampton","AMZNMktplace",116.98,"Music Support Team","5999","Stationery","04/03/2020"
"Wolverhampton City Council","http://opendatacommunities.org/id/metropolitan-district-council/wolverhampton","TAHDAH VERIFIED",90,"Towers Outdoor Education Centre","5734","-","04/03/2020"
"Wolverhampton City Council","http://opendatacommunities.org/id/metropolitan-district-council/wolverhampton","TAHDAH VERIFIED",320,"Towers Outdoor Education Centre","5734","Services - Professional Fees","04/03/2020"
"Wolverhampton City Council","http://opendatacommunities.org/id/metropolitan-district-council/wolverhampton","CARVER/WOLVERHAMPTON/L",6.42,"Car Parks Operational Staff","5211","Protective Clothing","04/03/2020"
"Wolverhampton City Council","http://opendatacommunities.org/id/metropolitan-district-council/wolverhampton","POUNDLAND LTD 1088",26.75,"LAC Transitions Accommodation","5310","Accommodation Costs","04/03/2020"
"Wolverhampton City Council","http://opendatacommunities.org/id/metropolitan-district-council/wolverhampton","ASDA SUPERSTORE",4.58,"LAC Transitions Team","5411","Accommodation Costs","04/03/2020"
"Wolverhampton City Council","http://opendatacommunities.org/id/metropolitan-district-council/wolverhampton","PAYPAL  ELT WELL",565,"Controlling Migration fund","8244","Books","04/03/2020"
"Wolverhampton City Council","http://opendatacommunities.org/id/metropolitan-district-council/wolverhampton","thetrainline.com",75.8,"LEP - Leadership & Management Programme","4112","Conference Expenses","04/03/2020"
"Wolverhampton City Council","http://opendatacommunities.org/id/metropolitan-district-council/wolverhampton","WM MORRISON FOOD.COM",76.42,"Discretionary Fund","5411","R4007","04/03/2020"
"Wolverhampton City Council","http://opendatacommunities.org/id/metropolitan-district-council/wolverhampton","EB  OFSTED BIG CONVERS",30,"LEP - Leadership & Management Programme","7399","Conference Expenses","03/03/2020"
"Wolverhampton City Council","http://opendatacommunities.org/id/metropolitan-district-council/wolverhampton","TESCO STORES 5503",12,"Bradley Resource Centre","5411","R4007","03/03/2020"
"Wolverhampton City Council","http://opendatacommunities.org/id/metropolitan-district-council/wolverhampton","THE FLOWER STALL",16.67,"Mayoral Expenses","5992","Materials","03/03/2020"
"Wolverhampton City Council","http://opendatacommunities.org/id/metropolitan-district-council/wolverhampton","CARVER/WOLVERHAMPTON/L",169.27,"Ground Maintenance East","5211","Materials","03/03/2020"
"Wolverhampton City Council","http://opendatacommunities.org/id/metropolitan-district-council/wolverhampton","WWW.THERIBBONROOM.CO.U",24.32,"SWP � Cohesion Activities","5131","Equipment - Health and Safety","03/03/2020"
"Wolverhampton City Council","http://opendatacommunities.org/id/metropolitan-district-council/wolverhampton","AMZNMktplace",4.61,"Quality Assurance & Policies","5999","Stationery","03/03/2020"
"Wolverhampton City Council","http://opendatacommunities.org/id/metropolitan-district-council/wolverhampton","WWW.THERANGE.CO.UK",48.8,"LAC Transitions Team","5712","Client Allowances","03/03/2020"
"Wolverhampton City Council","http://opendatacommunities.org/id/metropolitan-district-council/wolverhampton","NATWEST BANK",100,"Duke Street Bungalows","6011","Provisions (Not for resale)","03/03/2020"
"Wolverhampton City Council","http://opendatacommunities.org/id/metropolitan-district-council/wolverhampton","RAPID ELECTRONICS",63.4,"Technical Support","5732","Cleaning Supplies and Materials","03/03/2020"
"Wolverhampton City Council","http://opendatacommunities.org/id/metropolitan-district-council/wolverhampton","EB  NETWORK PRACTITION",48,"Fostering Team & Allowances","7399","Training Expenses","03/03/2020"
"Wolverhampton City Council","http://opendatacommunities.org/id/metropolitan-district-council/wolverhampton","AMZNMktplace",33.87,"Inclusion Support","5999","Materials","03/03/2020"
"Wolverhampton City Council","http://opendatacommunities.org/id/metropolitan-district-council/wolverhampton","NATWEST BANK",300,"NRPF","6011","No Recourse to Public Funds","03/03/2020"
"Wolverhampton City Council","http://opendatacommunities.org/id/metropolitan-district-council/wolverhampton","NATWEST BANK",400,"NRPF","6011","No Recourse to Public Funds","03/03/2020"
"Wolverhampton City Council","http://opendatacommunities.org/id/metropolitan-district-council/wolverhampton","AMZNMktplace",22.95,"Music Support Team","5999","Stationery","03/03/2020"
"Wolverhampton City Council","http://opendatacommunities.org/id/metropolitan-district-council/wolverhampton","KONICA MINOLTA BUSINES",153.2,"Music Support Team","7399","Equipment - R & M","03/03/2020"
"Wolverhampton City Council","http://opendatacommunities.org/id/metropolitan-district-council/wolverhampton","VIKING UK",4.79,"Business Support Unit","5111","Stationery","03/03/2020"
"Wolverhampton City Council","http://opendatacommunities.org/id/metropolitan-district-council/wolverhampton","WWW.SHEARWELL.CO.UK",35.31,"Northicote Farm","5999","R4000","03/03/2020"
"Wolverhampton City Council","http://opendatacommunities.org/id/metropolitan-district-council/wolverhampton","RED HOUSE BOARDING KEN",200,"Mental Health Assessment & Care Mgmt","5995","Accommodation Costs","03/03/2020"
"Wolverhampton City Council","http://opendatacommunities.org/id/metropolitan-district-council/wolverhampton","RED HOUSE BOARDING KEN",200,"Mental Health Assessment & Care Mgmt","5995","Accommodation Costs","03/03/2020"
"Wolverhampton City Council","http://opendatacommunities.org/id/metropolitan-district-council/wolverhampton","BARCLAYS",30,"Society of Artist","6011","Subsistence","03/03/2020"
"Wolverhampton City Council","http://opendatacommunities.org/id/metropolitan-district-council/wolverhampton","TAHDAH VERIFIED",75,"Towers Outdoor Education Centre","5734","Events","03/03/2020"
"Wolverhampton City Council","http://opendatacommunities.org/id/metropolitan-district-council/wolverhampton","TAHDAH VERIFIED",79.17,"Towers Outdoor Education Centre","5734","Training Expenses","03/03/2020"
"Wolverhampton City Council","http://opendatacommunities.org/id/metropolitan-district-council/wolverhampton","POST OFFICE COUNTER",201,"Safeguarding Admin Resource","9402","Comms - Postage","03/03/2020"
"Wolverhampton City Council","http://opendatacommunities.org/id/metropolitan-district-council/wolverhampton","POST OFFICE COUNTER",201,"Civic Centre Catering","9402","Stationery","03/03/2020"
"Wolverhampton City Council","http://opendatacommunities.org/id/metropolitan-district-council/wolverhampton","WWW.ICELAND.CO.UK",132.2,"Bradley Resource Centre","5411","Provisions (Not for resale)","03/03/2020"
"Wolverhampton City Council","http://opendatacommunities.org/id/metropolitan-district-council/wolverhampton","WWW.WMCA.CO.UK",59.5,"IMPACT","9399","R3300","03/03/2020"
"Wolverhampton City Council","http://opendatacommunities.org/id/metropolitan-district-council/wolverhampton","Amazon.co.uk NC5ZS81L5",79.44,"Strategic ICTS (ICT Serv Budget)","5969","-","02/03/2020"
"Wolverhampton City Council","http://opendatacommunities.org/id/metropolitan-district-council/wolverhampton","AMZNMktplace",45.79,"Strategic ICTS (ICT Serv Budget)","5999","-","02/03/2020"
"Wolverhampton City Council","http://opendatacommunities.org/id/metropolitan-district-council/wolverhampton","THE STILE INN",7,"Society of Artist","5813","Subsistence","02/03/2020"
"Wolverhampton City Council","http://opendatacommunities.org/id/metropolitan-district-council/wolverhampton","TRAVELODGE",9.54,"Research & Development","3615","R3300","02/03/2020"
"Wolverhampton City Council","http://opendatacommunities.org/id/metropolitan-district-council/wolverhampton","thetrainline.com",17.3,"Research & Development","4112","R3300","02/03/2020"
"Wolverhampton City Council","http://opendatacommunities.org/id/metropolitan-district-council/wolverhampton","FACEBK XGY42PEA82",52.13,"Communications & Marketing - General","7311","R4317","02/03/2020"
"Wolverhampton City Council","http://opendatacommunities.org/id/metropolitan-district-council/wolverhampton","FACEBK EKD4ATAAR2",106.65,"Communications & Marketing - General","7311","R4317","02/03/2020"
"Wolverhampton City Council","http://opendatacommunities.org/id/metropolitan-district-council/wolverhampton","FACEBK DMVXBQNG52",3.52,"Audience Development","7311","R4317","02/03/2020"
"Wolverhampton City Council","http://opendatacommunities.org/id/metropolitan-district-council/wolverhampton","LOYD 37 CHURCH STREET",200,"EIP Locality 8","6011","Grant Payments","02/03/2020"
"Wolverhampton City Council","http://opendatacommunities.org/id/metropolitan-district-council/wolverhampton","Amazon Prime",-6.66,"Key to Inspiration","5968","-","02/03/2020"
"Wolverhampton City Council","http://opendatacommunities.org/id/metropolitan-district-council/wolverhampton","ASDA GROCERIES ONLINE",-9.62,"Key to Inspiration","5411","Subsistence","02/03/2020"
"Wolverhampton City Council","http://opendatacommunities.org/id/metropolitan-district-council/wolverhampton","WWW.ICELAND.CO.UK",111.19,"Key to Inspiration","5411","Subsistence","02/03/2020"
"Wolverhampton City Council","http://opendatacommunities.org/id/metropolitan-district-council/wolverhampton","ASDA GROCERIES ONLINE",206.96,"Key to Inspiration","5411","Subsistence","02/03/2020"
"Wolverhampton City Council","http://opendatacommunities.org/id/metropolitan-district-council/wolverhampton","THE COAL AUTHORITY",104.85,"Capital Programme Team work for ext clie","9399","R4400","02/03/2020"
"Wolverhampton City Council","http://opendatacommunities.org/id/metropolitan-district-council/wolverhampton","SAINSBURYS (2340)",-0.7,"Bradley Resource Centre","5411","Provisions (Not for resale)","02/03/2020"
"Wolverhampton City Council","http://opendatacommunities.org/id/metropolitan-district-council/wolverhampton","SAINSBURYS (2340)",134.81,"Bradley Resource Centre","5411","Provisions (Not for resale)","02/03/2020"
"Wolverhampton City Council","http://opendatacommunities.org/id/metropolitan-district-council/wolverhampton","Amazon.co.uk 6V1IM6R45",329.99,"LEP - Leadership & Management Programme","5969","Books","02/03/2020"
"Wolverhampton City Council","http://opendatacommunities.org/id/metropolitan-district-council/wolverhampton","Amazon.co.uk N16VC7VR5",36.7,"LEP - Leadership & Management Programme","5969","Books","02/03/2020"
"Wolverhampton City Council","http://opendatacommunities.org/id/metropolitan-district-council/wolverhampton","NATWEST BANK",120,"NRPF","6011","No Recourse to Public Funds","02/03/2020"
"Wolverhampton City Council","http://opendatacommunities.org/id/metropolitan-district-council/wolverhampton","WWW.BRISTOWSUTOR.C",0,"Revenues","9399","VAT","02/03/2020"
"Wolverhampton City Council","http://opendatacommunities.org/id/metropolitan-district-council/wolverhampton","WWW.BRISTOWSUTOR.C",0,"Parking Enforcement","9399","VAT","02/03/2020"
"Wolverhampton City Council","http://opendatacommunities.org/id/metropolitan-district-council/wolverhampton","Amazon Prime",-6.66,"Aldersley Leisure Village","5968","R4000","02/03/2020"
"Wolverhampton City Council","http://opendatacommunities.org/id/metropolitan-district-council/wolverhampton","SPECSAVERSEVOUGB-",850,"Eye Test Vouchers (HR)","8043","Equipment - Health and Safety","02/03/2020"
"Wolverhampton City Council","http://opendatacommunities.org/id/metropolitan-district-council/wolverhampton","SUBABA SYSTEMS",427.2,"Aldersley Leisure Village","5111","Equipment - R & M","02/03/2020"
"Wolverhampton City Council","http://opendatacommunities.org/id/metropolitan-district-council/wolverhampton","B&M RETAIL",90.96,"LAC Transitions Team","5310","Client Allowances","02/03/2020"
"Wolverhampton City Council","http://opendatacommunities.org/id/metropolitan-district-council/wolverhampton","CT WOLVERHAMPTON",155,"LAC Transitions Team","8398","Client Allowances","02/03/2020"
"Wolverhampton City Council","http://opendatacommunities.org/id/metropolitan-district-council/wolverhampton","CURRYS ONLINE",83.32,"Youth Offending Team","5732","R4010","02/03/2020"
"Wolverhampton City Council","http://opendatacommunities.org/id/metropolitan-district-council/wolverhampton","CURRYS S/S",199.98,"Youth Offending Team","5732","R4010","02/03/2020"
"Wolverhampton City Council","http://opendatacommunities.org/id/metropolitan-district-council/wolverhampton","POUNDLAND LTD 1463",38,"COVID 19 Activity","5310","Cleaning Supplies and Materials","02/03/2020"
"Wolverhampton City Council","http://opendatacommunities.org/id/metropolitan-district-council/wolverhampton","ASDA GROCERIES ONLINE",-182.34,"Upper Pendeford Farm Childrens Home","5411","Provisions (Not for resale)","02/03/2020"
"Wolverhampton City Council","http://opendatacommunities.org/id/metropolitan-district-council/wolverhampton","AMZNMktplace",15.98,"Upper Pendeford Farm Childrens Home","5999","Provisions (Not for resale)","02/03/2020"
"Wolverhampton City Council","http://opendatacommunities.org/id/metropolitan-district-council/wolverhampton","AMZNMKTPLACE AMAZON.CO",82.97,"Upper Pendeford Farm Childrens Home","5999","Equipment - R & M","02/03/2020"
"Wolverhampton City Council","http://opendatacommunities.org/id/metropolitan-district-council/wolverhampton","AMZNMktplace",1.87,"Quality Assurance & Policies","5999","Stationery","02/03/2020"
"Wolverhampton City Council","http://opendatacommunities.org/id/metropolitan-district-council/wolverhampton","AMZNMktplace",19.1,"Quality Assurance & Policies","5999","Stationery","02/03/2020"
"Wolverhampton City Council","http://opendatacommunities.org/id/metropolitan-district-council/wolverhampton","Trainline",70.21,"Business Support Services","4112","Public Transport","02/03/2020"
"Wolverhampton City Council","http://opendatacommunities.org/id/metropolitan-district-council/wolverhampton","SAINSBURYS (2340)",39.5,"Creative Studies Delivery Area","5411","Provisions (Not for resale)","02/03/2020"
"Wolverhampton City Council","http://opendatacommunities.org/id/metropolitan-district-council/wolverhampton","BIRMINGHAM INT CAR PAR",10,"Research & Development","7523","Parking Fees","02/03/2020"
"Wolverhampton City Council","http://opendatacommunities.org/id/metropolitan-district-council/wolverhampton","EASYLINK UK",35.79,"Telecare","5969","Comms - Telephone Call charges","02/03/2020"
"Wolverhampton City Council","http://opendatacommunities.org/id/metropolitan-district-council/wolverhampton","AMZNMktplace",16.1,"Independant Living Services","5999","Stationery","02/03/2020"
"Wolverhampton City Council","http://opendatacommunities.org/id/metropolitan-district-council/wolverhampton","WP-CENTRAL TAXIS L",124,"CIN/CP Social Work Unit - Area 7","4121","Section 17","02/03/2020"
"Wolverhampton City Council","http://opendatacommunities.org/id/metropolitan-district-council/wolverhampton","POST OFFICE COUNTER",7.4,"LAC Team","9402","-","02/03/2020"
"Wolverhampton City Council","http://opendatacommunities.org/id/metropolitan-district-council/wolverhampton","Amazon.co.uk OR3K62TD5",20.37,"Blakenhall Commty & Healthy Living Ctr","5969","R4000","02/03/2020"
"Wolverhampton City Council","http://opendatacommunities.org/id/metropolitan-district-council/wolverhampton","WICKES WOLVERHAMPTON",12.08,"Independant Living Services","5211","Materials","02/03/2020"
"Wolverhampton City Council","http://opendatacommunities.org/id/metropolitan-district-council/wolverhampton","Avanti West Coast",223.6,"Fostering Team","4112","Public Transport","02/03/2020"
"Wolverhampton City Council","http://opendatacommunities.org/id/metropolitan-district-council/wolverhampton","MOONFLEET GUESTHOUSE",165,"Fostering Team","7011","Services - Supplies & Services to users","02/03/2020"
"Wolverhampton City Council","http://opendatacommunities.org/id/metropolitan-district-council/wolverhampton","Trainline",152.12,"Business Support Services","4112","Public Transport","02/03/2020"
"Wolverhampton City Council","http://opendatacommunities.org/id/metropolitan-district-council/wolverhampton","LOYD 37 CHURCH STREET",200,"Duke Street Bungalows","6011","Provisions (Not for resale)","02/03/2020"
"Wolverhampton City Council","http://opendatacommunities.org/id/metropolitan-district-council/wolverhampton","AMZNMktplace",29.99,"Ernest Bold Court","5999","R4000","02/03/2020"
"Wolverhampton City Council","http://opendatacommunities.org/id/metropolitan-district-council/wolverhampton","AMZNMktplace",66.92,"Ernest Bold Court","5999","R4000","02/03/2020"
"Wolverhampton City Council","http://opendatacommunities.org/id/metropolitan-district-council/wolverhampton","AMZNMktplace",41.31,"Inclusion Support","5999","Materials","02/03/2020"
"Wolverhampton City Council","http://opendatacommunities.org/id/metropolitan-district-council/wolverhampton","WWW.MOTOR.ORG.UK",60,"Workforce Development","5999","Training Expenses","02/03/2020"
"Wolverhampton City Council","http://opendatacommunities.org/id/metropolitan-district-council/wolverhampton","WWW.MOTOR.ORG.UK",60,"Workforce Development","5999","Training Expenses","02/03/2020"
"Wolverhampton City Council","http://opendatacommunities.org/id/metropolitan-district-council/wolverhampton","WWW.MOTOR.ORG.UK",60,"Workforce Development","5999","Training Expenses","02/03/2020"
"Wolverhampton City Council","http://opendatacommunities.org/id/metropolitan-district-council/wolverhampton","AMZNMktplace",20.19,"Parks - Ranger Service","5999","R4000","02/03/2020"
"Wolverhampton City Council","http://opendatacommunities.org/id/metropolitan-district-council/wolverhampton","REDWINGS LODGE",142.5,"EIP Locality 5","7011","Grant Payments","02/03/2020"
"Wolverhampton City Council","http://opendatacommunities.org/id/metropolitan-district-council/wolverhampton","PPOINT_ SANDHU",41,"EIP Locality 5","5411","Grant Payments","02/03/2020"
"Wolverhampton City Council","http://opendatacommunities.org/id/metropolitan-district-council/wolverhampton","AMZNMKTPLACE AMAZON.CO",14.21,"Members Expenses","5999","R4000","02/03/2020"
"Wolverhampton City Council","http://opendatacommunities.org/id/metropolitan-district-council/wolverhampton","TFM FARM   COUNTRY",213.7,"Northicote Farm","0763","R4000","02/03/2020"
"Wolverhampton City Council","http://opendatacommunities.org/id/metropolitan-district-council/wolverhampton","TFM FARM   COUNTRY",182.31,"Northicote Farm","0763","R4000","02/03/2020"
"Wolverhampton City Council","http://opendatacommunities.org/id/metropolitan-district-council/wolverhampton","E C STRAITON STAFF",65.71,"Northicote Farm","0742","R4400","02/03/2020"
"Wolverhampton City Council","http://opendatacommunities.org/id/metropolitan-district-council/wolverhampton","BUXTON'S LIMITED",133.82,"Northicote Farm","5193","R4000","02/03/2020"
